Workbook

Sheet 前提条件入力表
F1: ≪簡易な検討の計算表（記載例）≫ （単位：千円、年） | L1: 入力変数（コスト削減要素） | O1: 入力変数（コスト要素）
F2: ■前提条件
F3: PFI方式試算例 | I3: 従来型手法 | J3: 採用手法 の条件 | K3: 採用手法 | L3: 前提条件の入力方法
F4: 手法 | I4: 従来型手法 | K4: ②DBO | L4: 採用手法（「①BTO・BOT・BOO・RO」、「②DBO」、「③BT」、「④指定管理者制度」）から選択して下さい。DB方式は「③BT」を選択して下さい。包括的民間委託、公共施設等運営権方式は「④指定管理者制度」を選択して下さい。（BOT・BOOは固定資産税等は考慮されていません。）
G5: 整備期間 | I5: 1 | J5: 従来手法=採用手法 | K5: =I5 -> 1 | L5: 1年間に設定してあります（変更できません）。
G6: 維持管理・運営期間 | I6: 3 | J6: 従来手法=採用手法 | K6: =I6 -> 3 | L6: 1～50年間から選択して下さい。「③BT」を選択した場合には起債償還期間と想定して選択してください。
F7: 事業期間
G8: 整備費 | I8: 5000000 | J8: 0.05 | K8: =IF(K4=I106,0,I8*(1-J8)) -> 4750000 | L8: 従来型手法の整備費と、採用手法におけるコスト削減割合（％）を記入して下さい。
G9: 維持管理・運営費 （1年当たり） | H9: 人件費 （運営維持管理費） | I9: 60000 | J9: 0.05 | K9: =I9*(1-J9) -> 57000 | L9: 従来型手法の維持管理・運営費と、採用手法におけるコスト削減割合（％）を記入して下さい。
H10: ユーティリティー費 | I10: 40000 | J10: 0 | K10: =I10*(1-J10) -> 40000 | L10: 従来型手法の維持管理・運営費と、採用手法におけるコスト削減割合（％）を記入して下さい。
H11: 修繕費 | I11: 20000 | J11: 0.1 | K11: =I11*(1-J11) -> 18000 | L11: 従来型手法の維持管理・運営費と、採用手法におけるコスト削減割合（％）を記入して下さい。
H12: 合計 | I12: =SUM(I9:I11) -> 120000 | J12: =(I9*J9+I10*J10+I11*J11)/(I9+I10+I11) -> 0.04166666667 | K12: =I12*(1-J12) -> 115000 | L12: 人件費、ユーティリティ費、修繕費から自動計算されます。人件費、ユーティリティー費、修繕費を0にして合計欄のみの入力とすることも可能です。
G13: 利用料金収入（1年当たり） | I13: 100 | J13: 0.1 | K13: =I13*(1+J13) -> 110 | L13: 従来型手法の利用料金収入と、採用手法における収入増加割合（％）を記入して下さい。
F14: 費用・収入
G15: 現在価値への割引率 | I15: 0.023 | J15: 従来手法=採用手法 | K15: =I15 -> 0.023 | L15: 現在価値への割引率を記入して下さい。（標準は2.3％になります。）
F16: 資金面の内容
G17: 整備費に対する補助金・交付金の割合 | I17: 0.55 | K17: 0.55 | L17: 整備費に対する補助金・交付金の割合（％）を記入して下さい。
G18: 整備費に対する起債の割合 | I18: 0.405 | K18: 0 | L18: 整備費に対する起債の割合（％）を記入して下さい。
G19: 整備費に対する一般財源の割合 | I19: 0.045 | K19: 0 | L19: 整備費に対する一般財源の割合（％）を記入して下さい。
G20: 整備費に対する民間資金の割合 | I20: ― | K20: 0.45 | L20: 「100％－（補助金・交付金の割合＋起債の割合＋一般財源の割合）」が自動計算。BT・DB、DBOでは0％。
G21: 小計 | I21: =SUM(I17:I19) -> 1 | K21: =SUM(K17:K20) -> 1 | L21: 小計が100％になることを確認して下さい。
F22: 整備費に対する資金調達の内容 | I22: =IF(I21<1,"小計を↑100%にして下さい",IF(I21>1,"小計を↑100％にして下さい","")) ->  | K22: =IF(K21<1,"小計を↑100%に",IF(K21>1,"小計を↑100％に","")) -> 
G23: 補助金・交付金の金額 | I23: =IF(K4=I106,0,$I$8*I17) -> 2750000 | K23: =$K$8*K17 -> 2612500 | L23: 整備費の資金調達について、補助金・交付金の額が自動計算されます。
G24: 起債金額 | I24: =IF(K4=I106,0,$I$8*I18) -> 2025000 | K24: =$K$8*K18 -> 0 | L24: 整備費の資金調達について、起債の額が自動計算されます。
G25: 一般財源の金額 | I25: =IF(K4=I106,0,$I$8*I19) -> 225000 | K25: =$K$8*K19 -> 0 | L25: 整備費の資金調達について、一般財源の額が自動計算されます。
G26: 起債金利 | I26: 0.011 | J26: 従来手法=採用手法 | K26: =I26 -> 0.011 | L26: 起債金利を％で入力して下さい。
G27: 起債償還期間 | I27: =I6 -> 3 | J27: 従来手法=採用手法 | K27: =I27 -> 3 | L27: 維持管理・運営期間になります。
G28: 起債償還方法 | I28: 元利均等 | J28: 従来手法=採用手法 | K28: =I28 -> 元利均等 | L28: 期限一括、元利均等、元金均等から選択して下さい。
F29: 整備費に対する公共側の資金調達
G30: 資本金額 | I30: ― | K30: 10000 | L30: SPCに必要な資本金額を記入して下さい。（標準は10百万円）
G31: 借入金額 | I31: ― | K31: =IF(K20=0,0,(IF(K4=I105,0,IF(K4=I104,0,(K8*K20-K30))))) -> 0 | L31: 「民間資金の金額－資本金額」が自動計算。借入金額は整備費から資本金を減じた金額と仮定。
G32: 借入金利 | I32: ― | K32: 0.016 | L32: 民間事業者の借入金利を入力して下さい。
G33: 民間事業者の借入期間 | I33: ― | K33: =K6 -> 3 | L33: 維持管理・運営期間になります。
F34: 採用手法における整備費の資金調達
G35: 割賦金利 | I35: ― | K35: =K32 -> 0.016 | L35: 公共が民間事業者に支払う整備費の対価の割賦金利は借入金利と同じと仮定。
G36: 割賦期間 | I36: ― | K36: =I6 -> 3 | L36: 公共が民間事業者に支払う整備費の対価の割賦払いは維持管理・運営期間と同じと仮定
G37: 法人税等 | I37: ― | K37: 0.2997 | L37: 実効税率は29.97％を入力してあります。
D38: 全ての入力が終了しましたら、 | G38: 調査等費用 | I38: ― | K38: 35000 | L38: 調査等費用を記入して下さい。（標準をPFI,DBOで35,000千円、DBで25,000円としています。）
D39: 上記の「VFM計算」のボタンを | F39: 採用手法の内容
D40: クリックして下さい。 | G40: 採用手法における対価の調整 | I40: ― | K40: ='簡易な検討の計算表（空欄）'!K37 -> 717265.9044 | L40: 採用手法における対価の調整額で、民間事業者のEIRRに必要な収益相当額が自動計算されます。
G41: 民間事業者のEIRR（※） | I41: ― | K41: 0.05 | L41: 民間事業者の収益（資本金に対する配当等の利回り）を記入して下さい。（標準は5％になります。）
F42: 採用手法の民間事業者の収益
F46: ■簡易VFMの結果
H47: 従来型手法 | I47: 採用手法 | J47: VFM
G48: 金額 | H48: ='簡易な検討の計算表（空欄）'!AB4 -> 2546800.17 | I48: ='簡易な検討の計算表（空欄）'!AC4 -> 2421200.557 | J48: ='簡易な検討の計算表（空欄）'!AD4 -> 125599.6123
G49: ％ | J49: ='簡易な検討の計算表（空欄）'!AD5 -> 0.04931663419
F50: ※現在価値のVFM
F52: ※VFMは現在価値に換算して比較を行うこととなっています。
F54: ■PPP/ＰＦＩ手法簡易定量評価調書
H55: 従来型手法 | J55: 採用手法
F56: 整備等（運営等を除く。）費用 | H56: =I8/100000 -> 50 | J56: =K8/100000 -> 47.5
F57: 〈算出根拠〉
F58: 運営等費用 | H58: =(I12*I6)/100000 -> 3.6 | J58: =(K12*K6)/100000 -> 3.45
F59: 〈算出根拠〉
F60: 利用料金収入 | H60: =(I13*I6)/100000 -> 0.003 | J60: =(K13*K6)/100000 -> 0.0033
F61: 〈算出根拠〉
F62: 資金調達費用 | H62: ='簡易な検討の計算表（空欄）'!AB18 -> 0.4471245487 | J62: ='簡易な検討の計算表（空欄）'!AD18 -> 0
F63: 〈算出根拠〉
F64: 調査等費用 | H64: =I38 -> ― | J64: =K38/100000 -> 0.35
F65: 〈算出根拠〉
F66: 税金 | H66: ― | J66: ='簡易な検討の計算表（空欄）'!AD22 -> 0.04383925606
F67: 〈算出根拠〉
F68: 税引き後損益 | H68: ― | J68: ='簡易な検討の計算表（空欄）'!AD24 -> 0.1024378746
F70: 〈算出根拠〉
F71: 合計 | H71: ='簡易な検討の計算表（空欄）'!AB27 -> 26.54412455 | J71: ='簡易な検討の計算表（空欄）'!AD27 -> 25.31797713
F72: 〈算出根拠〉
F73: 合計（現在価値） | H73: ='簡易な検討の計算表（空欄）'!AB29 -> 25.4680017 | J73: ='簡易な検討の計算表（空欄）'!AD29 -> 24.21200557
F74: 財政支出削減率 | J74: ='簡易な検討の計算表（空欄）'!AD30 -> VFMは1.3億円 4.9%
F75: その他（前提条件等） | H75: =CONCATENATE("事業期間",I6,"年間 割引率",I15*100,"％") -> 事業期間3年間 割引率2.3％
H103: 1 | I103: ①BTO・BOT・BOO・RO | J103: 期限一括
H104: 2 | I104: ②DBO | J104: 元利均等
H105: 3 | I105: ③BT | J105: 元金均等
H106: 4 | I106: ④指定管理者制度
H107: 5
H108: 6
H109: 7
H110: 8
H111: 9
H112: 10
H113: 11
H114: 12
H115: 13
H116: 14
H117: 15
H118: 16
H119: 17
H120: 18
H121: 19
H122: 20
H123: 21
H124: 22
H125: 23
H126: 24
H127: 25
H128: 26
H129: 27
H130: 28
H131: 29
H132: 30
H133: 31
H134: 32
H135: 33
H136: 34
H137: 35
H138: 36
H139: 37
H140: 38
H141: 39
H142: 40
H143: 41
H144: 42
H145: 43
H146: 44
H147: 45
H148: 46
H149: 47
H150: 48
H151: 49
H152: 50

Sheet 簡易な検討の計算表（空欄）
F1: ≪簡易な検討の計算表（記載例）≫ （単位：千円、年） | L1: のセルに想定されている条件を入力して下さい。なお、全ての入力が終了しましたら、左側の「VFM計算」のボタンをクリックして下さい。
F2: ■前提条件 | L2: 右記のセルに記載されている数値を「PPP/PFI手法簡易定量評価調書」に記載して下さい。 | Z2: ■簡易VFMの結果
F3: PFI方式試算例 | I3: 従来型手法 | J3: 採用手法 の条件 | K3: 採用手法 | L3: 前提条件の入力方法 | R3: 仮定した前提条件 | AB3: 従来型手法 | AC3: 採用手法 | AD3: VFM
F4: 手法 | I4: 従来型手法 | K4: =前提条件入力表!K4 -> ②DBO | L4: 採用手法（「①BTO・BOT・BOO・RO」、「②DBO」、「③BT」、「④指定管理者制度」）から選択して下さい。DB方式は「③BT」を選択して下さい。包括的民間委託、公共施設等運営権方式は「④指定管理者制度」を選択して下さい。（BOT・BOOは固定資産税等は考慮されていません。） | AA4: 金額 | AB4: =BF56 -> 2546800.17 | AC4: =BF73 -> 2421200.557 | AD4: =AB4-AC4 -> 125599.6123
G5: 整備期間 | I5: 1 | J5: 従来手法=採用手法 | K5: =I5 -> 1 | L5: 1年間に設定してあります（変更できません）。 | R5: 1年間と仮定 | AA5: ％ | AD5: =AD4/AB4 -> 0.04931663419
G6: 維持管理・運営期間 | I6: =前提条件入力表!I6 -> 3 | J6: 従来手法=採用手法 | K6: =I6 -> 3 | L6: 1～50年間から選択して下さい。「③BT」を選択した場合には起債償還期間と想定して選択してください。 | R6: 20年間と仮定 | Z6: ※現在価値のVFM
F7: 事業期間
G8: 整備費 | I8: =前提条件入力表!I8 -> 5000000 | J8: =前提条件入力表!J8 -> 0.05 | K8: =IF(K4=N124,0,I8*(1-J8)) -> 4750000 | L8: 従来型手法の整備費と、採用手法におけるコスト削減割合（％）を記入して下さい。 | Z8: ※VFMは現在価値に換算して比較を行うこととなっています。
G9: 維持管理・運営費（1年当たり） | I9: =前提条件入力表!I12 -> 120000 | J9: =前提条件入力表!J12 -> 0.04166666667 | K9: =I9*(1-J9) -> 115000 | L9: 従来型手法の維持管理・運営費と、採用手法におけるコスト削減割合（％）を記入して下さい。
G10: 利用料金収入（1年当たり） | I10: =前提条件入力表!I13 -> 100 | J10: =前提条件入力表!J13 -> 0.1 | K10: =I10*(1+J10) -> 110 | L10: 従来型手法の利用料金収入と、採用手法における収入増加割合（％）を記入して下さい。 | Z10: ■PPP/ＰＦＩ手法簡易定量評価調書
F11: 費用・収入 | AB11: 従来型手法 | AD11: 採用手法
G12: 現在価値への割引率 | I12: =前提条件入力表!I15 -> 0.023 | J12: 従来手法=採用手法 | K12: =I12 -> 0.023 | L12: 現在価値への割引率を記入して下さい。（標準は2.3％になります。） | R12: 現在価値への割引率は2.3％と仮定（整備期間を現在と仮定） | Z12: 整備等（運営等を除く。）費用 | AB12: =I8/100000 -> 50 | AD12: =K8/100000 -> 47.5
F13: 資金面の内容 | Z13: 〈算出根拠〉
G14: 整備費に対する補助金・交付金の割合 | I14: =前提条件入力表!I17 -> 0.55 | K14: =前提条件入力表!K17 -> 0.55 | L14: 整備費に対する補助金・交付金の割合（％）を記入して下さい。 | R14: 整備費に対する補助金・交付金の割合を入力 | Z14: 運営等費用 | AB14: =(I9*I6)/100000 -> 3.6 | AD14: =(K9*K6)/100000 -> 3.45
G15: 整備費に対する起債の割合 | I15: =前提条件入力表!I18 -> 0.405 | K15: =前提条件入力表!K18 -> 0 | L15: 整備費に対する起債の割合（％）を記入して下さい。 | R15: 整備費に対する起債の割合を入力 | Z15: 〈算出根拠〉
G16: 整備費に対する一般財源の割合 | I16: =前提条件入力表!I19 -> 0.045 | K16: =前提条件入力表!K19 -> 0 | L16: 整備費に対する一般財源の割合（％）を記入して下さい。 | R16: 整備費に対する一般財源の割合を入力 | Z16: 利用料金収入 | AB16: =(I10*I6)/100000 -> 0.003 | AD16: =(K10*K6)/100000 -> 0.0033
G17: 整備費に対する民間資金の割合 | I17: ― | K17: =IF(K4=M124,0,(IF(K4=N124,0,IF(K4=L124,0,((1-SUM(K14:K16))))))) -> 0 | L17: 「100％－（補助金・交付金の割合＋起債の割合＋一般財源の割合）」が自動計算。BT・DB、DBOでは0％。 | R17: 整備費に対する民間資金の割合を入力 | Z17: 〈算出根拠〉
G18: 小計 | I18: =SUM(I14:I16) -> 1 | K18: =SUM(K14:K17) -> 0.55 | L18: 小計が100％になることを確認して下さい。 | R18: 合計は100％ | Z18: 資金調達費用 | AB18: =BF48/100000 -> 0.4471245487 | AD18: =(BF63+BF65)/100000 -> 0
F19: 整備費に対する資金調達の内容 | I19: =IF(I18<1,"小計を↑100%にして下さい",IF(I18>1,"小計を↑100％にして下さい","")) ->  | K19: =IF(K18<1,"小計を↑100%に",IF(K18>1,"小計を↑100％に","")) -> 小計を↑100%に | Z19: 〈算出根拠〉
G20: 補助金・交付金の金額 | I20: =IF(K4=N124,0,$I$8*I14) -> 2750000 | K20: =$K$8*K14 -> 2612500 | R20: 整備費の資金調達について、補助金・交付金の額が自動計算されます。 | Z20: 調査等費用 | AB20: =I35 -> ― | AD20: =K35/100000 -> 0.35
G21: 起債金額 | I21: =IF(K4=N124,0,$I$8*I15) -> 2025000 | K21: =$K$8*K15 -> 0 | R21: 整備費の資金調達について、起債の額が自動計算されます。 | Z21: 〈算出根拠〉
G22: 一般財源の金額 | I22: =IF(K4=N124,0,$I$8*I16) -> 225000 | K22: 0 | R22: 整備費の資金調達について、一般財源の額が自動計算されます。 | Z22: 税金 | AB22: ― | AD22: =BF90/100000 -> 0.04383925606
G23: 起債金利 | I23: =前提条件入力表!I26 -> 0.011 | J23: 従来手法=採用手法 | K23: =I23 -> 0.011 | L23: 起債金利を％で入力して下さい。 | R23: 起債金利を1.1％と仮定 | Z23: 〈算出根拠〉
G24: 起債償還期間 | I24: =I6 -> 3 | J24: 従来手法=採用手法 | K24: =I24 -> 3 | L24: 維持管理・運営期間になります。 | R24: 起債償還方法を20年間の元利均等償還と仮定 | Z24: 税引き後損益 | AB24: ― | AD24: =BF91/100000 -> 0.1024378746
G25: 起債償還方法 | I25: =前提条件入力表!I28 -> 元利均等 | J25: 従来手法=採用手法 | K25: =I25 -> 元利均等 | L25: 期限一括、元利均等、元金均等から選択して下さい。
F26: 整備費に対する公共側の資金調達 | Z26: 〈算出根拠〉
G27: 資本金額 | I27: ― | K27: =前提条件入力表!K30 -> 10000 | L27: SPCに必要な資本金額を記入して下さい。（標準は10百万円） | R27: 資本金額を10百万円と仮定 | Z27: 合計 | AB27: =BF55/100000 -> 26.54412455 | AD27: =BF72/100000 -> 25.31797713
G28: 借入金額 | I28: ― | K28: =IF(K17=0,0,(IF(K4=M124,0,IF(K4=L124,0,(K8*K17-K27))))) -> 0 | L28: 「民間資金の金額－資本金額」が自動計算。 | R28: 借入金額は整備費から資本金を減じた金額と仮定 | Z28: 〈算出根拠〉
G29: 借入金利 | I29: ― | K29: =前提条件入力表!K32 -> 0.016 | L29: 民間事業者の借入金利を入力して下さい。 | R29: 借入金利は起債金利+0.5％の1.6％と仮定 | Z29: 合計（現在価値） | AB29: =BF56/100000 -> 25.4680017 | AD29: =BF73/100000 -> 24.21200557
G30: 民間事業者の借入期間 | I30: ― | K30: =K6 -> 3 | L30: 維持管理・運営期間になります。 | R30: 借入金の返済方法は20年間（維持管理・運営期間と同じ）の元利均等返済と仮定 | Z30: 財政支出削減率 | AD30: =CONCATENATE("VFMは",ROUND(AB29-AD29,1),"億円 ",ROUND(AD5*100,1),"%") -> VFMは1.3億円 4.9%
F31: 採用手法における整備費の資金調達 | Z31: その他（前提条件等） | AB31: =CONCATENATE("事業期間",I6,"年間 割引率",I12*100,"％") -> 事業期間3年間 割引率2.3％
G32: 割賦金利 | I32: ― | K32: =K29 -> 0.016 | L32: 民間事業者の借入金利になります | R32: 公共が民間事業者に支払う整備費の対価の割賦金利は借入金利と同じ1.6％と仮定
G33: 割賦期間 | I33: ― | K33: =I6 -> 3 | L33: 維持管理・運営期間になります。 | R33: 公共が民間事業者に支払う整備費の対価の割賦払いは20年間（維持管理・運営期間と同じ）の元利均等払いと仮定
G34: 法人税等 | I34: ― | K34: 0.2997 | L34: 実効税率は29.97％を入力してあります。 | R34: 単年度損益に対して29.97％（実効税率）の法人税を想定
D35: 全ての入力が終了しましたら、 | G35: 調査等費用 | I35: ― | K35: =前提条件入力表!K38 -> 35000 | L35: 調査等費用を記入して下さい。（標準をPFI,DBOで35,000千円、DBで25,000円としています。） | R35: 調査等費用をPFI・DBOで35百万円、DBで25百万円と仮定
D36: 上記の「VFM計算」のボタンを | F36: 採用手法の内容
D37: クリックして下さい。 | G37: 採用手法における対価の調整 | I37: ― | K37: 717265.9044 | L37: 採用手法における対価の調整額で、自動計算されます。 | R37: 民間事業者のEIRRに必要な収益相当額が自動計算されます。
G38: 民間事業者のEIRR（※） | I38: ― | K38: =前提条件入力表!K41 -> 0.05 | L38: 民間事業者の収益（資本金に対する配当等の利回り）を記入して下さい。（標準は5％になります。） | R38: 民間事業者の収益相当額として、EIRRを5％程度にする収益相当額と仮定。
F39: 採用手法の民間事業者の収益
C41: 現在価値への換算割合 | G41: 1 | H41: =G41/(1+$I$12) -> 0.9775171065 | I41: =H41/(1+$I$12) -> 0.9555396936 | J41: =I41/(1+$I$12) -> 0.9340563965 | K41: 0.913056106 | L41: 0.8925279629 | M41: 0.8724613518 | N41: 0.8528458962 | O41: 0.8336714528 | P41: 0.8149281063 | Q41: 0.7966061645 | R41: 0.778696153 | S41: 0.7611888104 | T41: 0.7440750835 | U41: 0.7273461226 | V41: 0.7109932773 | W41: 0.6950080912 | X41: =W41/(1+$I$12) -> 0.6793822983 | Y41: =X41/(1+$I$12) -> 0.6641078185 | Z41: 0.6491767532 | AA41: 0.6345813814 | AB41: =AA41/(1+$I$12) -> 0.6203141558 | AC41: 0.6063676987 | AD41: =AC41/(1+$I$12) -> 0.5927347984 | AE41: =AD41/(1+$I$12) -> 0.5794084051 | AF41: =AE41/(1+$I$12) -> 0.5663816276 | AG41: 0.5536477298 | AH41: 0.5412001269 | AI41: 0.5290323821 | AJ41: 0.5171382034 | AK41: 0.5055114403 | AL41: 0.4941460805 | AM41: 0.4830362468 | AN41: 0.4721761943 | AO41: 0.4615603073 | AP41: 0.451183096 | AQ41: 0.4410391946 | AR41: 0.4311233574 | AS41: 0.4214304568 | AT41: 0.4119554808 | AU41: 0.4026935296 | AV41: 0.3936398139 | AW41: 0.3847896519 | AX41: 0.3761384671 | AY41: 0.3676817861 | AZ41: 0.3594152357 | BA41: 0.3513345412 | BB41: 0.3434355241 | BC41: 0.3357140999 | BD41: 0.3281662755 | BE41: 0.3207881481
C42: （次年度の現在価値換算後の割合（前年度を1）＝1/（1+割引率））
C43: ■従来型手法での公共の収支 | G43: 整備期間 | H43: 維持管理・運営期間
F44: 仮定した内容 | G44: -1 | H44: 1 | I44: 2 | J44: 3 | K44: 4 | L44: 5 | M44: 6 | N44: 7 | O44: 8 | P44: 9 | Q44: 10 | R44: 11 | S44: 12 | T44: 13 | U44: 14 | V44: 15 | W44: 16 | X44: 17 | Y44: 18 | Z44: 19 | AA44: 20 | AB44: 21 | AC44: 22 | AD44: 23 | AE44: 24 | AF44: 25 | AG44: 26 | AH44: 27 | AI44: 28 | AJ44: 29 | AK44: 30 | AL44: 31 | AM44: 32 | AN44: 33 | AO44: 34 | AP44: 35 | AQ44: 36 | AR44: 37 | AS44: 38 | AT44: 39 | AU44: 40 | AV44: 41 | AW44: 42 | AX44: 43 | AY44: 44 | AZ44: 45 | BA44: 46 | BB44: 47 | BC44: 48 | BD44: 49 | BE44: 50 | BF44: 合計
D45: 整備費 | E45: 補助金・交付金分支払 | F45: =I20 -> 2750000 | G45: =F45 -> 2750000 | BF45: =SUM(G45:BE45) -> 2750000
E46: 一般財源 | F46: =I22 -> 225000 | G46: =F46 -> 225000 | BF46: =SUM(G46:BE46) -> 225000
E47: 起債元金・償還元金 | F47: =I21 -> 2025000 | H47: =IF(H44>$I$6,0,IF($I$25=$K$125,IF($I$24=H44,$F$47,0),IF($I$25=$M$125,$F$47/$I$24,IF($I$25=$L$125,PPMT($I$23,H44,$I$24,-$I$21,0))))) -> 667629.1516 | I47: =IF(I44>$I$6,0,IF($I$25=$K$125,IF($I$24=I44,$F$47,0),IF($I$25=$M$125,$F$47/$I$24,IF($I$25=$L$125,PPMT($I$23,I44,$I$24,-$I$21,0))))) -> 674973.0723 | J47: 682397.7761 | K47: 0 | L47: 0 | M47: 0 | N47: 0 | O47: 0 | P47: 0 | Q47: 0 | R47: 0 | S47: 0 | T47: 0 | U47: 0 | V47: 0 | W47: 0 | X47: 0 | Y47: 0 | Z47: 0 | AA47: 0 | AB47: 0 | AC47: 0 | AD47: 0 | AE47: 0 | AF47: 0 | AG47: 0 | AH47: 0 | AI47: 0 | AJ47: 0 | AK47: 0 | AL47: 0 | AM47: 0 | AN47: 0 | AO47: 0 | AP47: 0 | AQ47: 0 | AR47: 0 | AS47: 0 | AT47: 0 | AU47: 0 | AV47: 0 | AW47: 0 | AX47: 0 | AY47: 0 | AZ47: 0 | BA47: 0 | BB47: 0 | BC47: 0 | BD47: 0 | BE47: 0 | BF47: =SUM(G47:BE47) -> 2025000
D48: 資金調達費 | E48: 起債金利 | F48: =I23 -> 0.011 | H48: =IF(H44>$I$6,0,IF($I$25=$K$125,H126*$F$48,IF($I$25=$M$125,H126*$F$48,IF($I$25=$L$125,IPMT($I$23,H44,$I$24,-$I$21))))) -> 22275 | I48: =IF(I44>$I$6,0,IF($I$25=$K$125,I126*$F$48,IF($I$25=$M$125,I126*$F$48,IF($I$25=$L$125,IPMT($I$23,I44,$I$24,-$I$21))))) -> 14931.07933 | J48: 7506.375537 | K48: 0 | L48: 0 | M48: 0 | N48: 0 | O48: 0 | P48: 0 | Q48: 0 | R48: 0 | S48: 0 | T48: 0 | U48: 0 | V48: 0 | W48: 0 | X48: 0 | Y48: 0 | Z48: 0 | AA48: 0 | AB48: 0 | AC48: 0 | AD48: 0 | AE48: 0 | AF48: 0 | AG48: 0 | AH48: 0 | AI48: 0 | AJ48: 0 | AK48: 0 | AL48: 0 | AM48: 0 | AN48: 0 | AO48: 0 | AP48: 0 | AQ48: 0 | AR48: 0 | AS48: 0 | AT48: 0 | AU48: 0 | AV48: 0 | AW48: 0 | AX48: 0 | AY48: 0 | AZ48: 0 | BA48: 0 | BB48: 0 | BC48: 0 | BD48: 0 | BE48: 0 | BF48: =SUM(G48:BE48) -> 44712.45487
D49: 運営費 | F49: =IF(K4=M124,0,I9) -> 120000 | H49: =IF(H44>$I$6,0,$F$49) -> 120000 | I49: =IF(I44>$I$6,0,$F$49) -> 120000 | J49: 120000 | K49: 0 | L49: 0 | M49: 0 | N49: 0 | O49: 0 | P49: 0 | Q49: 0 | R49: 0 | S49: 0 | T49: 0 | U49: 0 | V49: 0 | W49: 0 | X49: 0 | Y49: 0 | Z49: 0 | AA49: 0 | AB49: 0 | AC49: 0 | AD49: 0 | AE49: 0 | AF49: 0 | AG49: 0 | AH49: 0 | AI49: 0 | AJ49: 0 | AK49: 0 | AL49: 0 | AM49: 0 | AN49: 0 | AO49: 0 | AP49: 0 | AQ49: 0 | AR49: 0 | AS49: 0 | AT49: 0 | AU49: 0 | AV49: 0 | AW49: 0 | AX49: 0 | AY49: 0 | AZ49: 0 | BA49: 0 | BB49: 0 | BC49: 0 | BD49: 0 | BE49: 0 | BF49: 360000
D50: 調査等費用 | G50: =F50 -> 0 | BF50: 0
C51: 支出合計（A） | G51: =SUM(G45:G50) -> 2975000 | H51: =SUM(H45:H50) -> 809904.1516 | I51: =SUM(I45:I50) -> 809904.1516 | J51: 809904.1516 | K51: 0 | L51: 0 | M51: 0 | N51: 0 | O51: 0 | P51: 0 | Q51: 0 | R51: 0 | S51: 0 | T51: 0 | U51: 0 | V51: 0 | W51: 0 | X51: 0 | Y51: 0 | Z51: 0 | AA51: 0 | AB51: 0 | AC51: 0 | AD51: 0 | AE51: 0 | AF51: 0 | AG51: 0 | AH51: 0 | AI51: 0 | AJ51: 0 | AK51: 0 | AL51: 0 | AM51: 0 | AN51: 0 | AO51: 0 | AP51: 0 | AQ51: 0 | AR51: 0 | AS51: 0 | AT51: 0 | AU51: 0 | AV51: 0 | AW51: 0 | AX51: 0 | AY51: 0 | AZ51: 0 | BA51: 0 | BB51: 0 | BC51: 0 | BD51: 0 | BE51: 0 | BF51: 5404712.455
D52: 補助金・交付金分収入 | F52: =F45 -> 2750000 | G52: =F52 -> 2750000 | BF52: =SUM(G52:BE52) -> 2750000
D53: 利用料金収入 | F53: =IF(K4=M124,0,(I10)) -> 100 | H53: =IF(H44>$I$6,0,$F$53) -> 100 | I53: =IF(I44>$I$6,0,$F$53) -> 100 | J53: 100 | K53: 0 | L53: 0 | M53: 0 | N53: 0 | O53: 0 | P53: 0 | Q53: 0 | R53: 0 | S53: 0 | T53: 0 | U53: 0 | V53: 0 | W53: 0 | X53: 0 | Y53: 0 | Z53: 0 | AA53: 0 | AB53: 0 | AC53: 0 | AD53: 0 | AE53: 0 | AF53: 0 | AG53: 0 | AH53: 0 | AI53: 0 | AJ53: 0 | AK53: 0 | AL53: 0 | AM53: 0 | AN53: 0 | AO53: 0 | AP53: 0 | AQ53: 0 | AR53: 0 | AS53: 0 | AT53: 0 | AU53: 0 | AV53: 0 | AW53: 0 | AX53: 0 | AY53: 0 | AZ53: 0 | BA53: 0 | BB53: 0 | BC53: 0 | BD53: 0 | BE53: 0 | BF53: 300
C54: 収入合計（B) | G54: =SUM(G52:G53) -> 2750000 | H54: =SUM(H52:H53) -> 100 | I54: =SUM(I52:I53) -> 100 | J54: 100 | K54: 0 | L54: 0 | M54: 0 | N54: 0 | O54: 0 | P54: 0 | Q54: 0 | R54: 0 | S54: 0 | T54: 0 | U54: 0 | V54: 0 | W54: 0 | X54: 0 | Y54: 0 | Z54: 0 | AA54: 0 | AB54: 0 | AC54: 0 | AD54: 0 | AE54: 0 | AF54: 0 | AG54: 0 | AH54: 0 | AI54: 0 | AJ54: 0 | AK54: 0 | AL54: 0 | AM54: 0 | AN54: 0 | AO54: 0 | AP54: 0 | AQ54: 0 | AR54: 0 | AS54: 0 | AT54: 0 | AU54: 0 | AV54: 0 | AW54: 0 | AX54: 0 | AY54: 0 | AZ54: 0 | BA54: 0 | BB54: 0 | BC54: 0 | BD54: 0 | BE54: 0 | BF54: 2750300
C55: 純支出（C）＝（A）-（B） | G55: =G51-G54 -> 225000 | H55: 809804.1516 | I55: 809804.1516 | J55: 809804.1516 | K55: 0 | L55: 0 | M55: 0 | N55: 0 | O55: 0 | P55: 0 | Q55: 0 | R55: 0 | S55: 0 | T55: 0 | U55: 0 | V55: 0 | W55: 0 | X55: 0 | Y55: 0 | Z55: 0 | AA55: 0 | AB55: 0 | AC55: 0 | AD55: 0 | AE55: 0 | AF55: 0 | AG55: 0 | AH55: 0 | AI55: 0 | AJ55: 0 | AK55: 0 | AL55: 0 | AM55: 0 | AN55: 0 | AO55: 0 | AP55: 0 | AQ55: 0 | AR55: 0 | AS55: 0 | AT55: 0 | AU55: 0 | AV55: 0 | AW55: 0 | AX55: 0 | AY55: 0 | AZ55: 0 | BA55: 0 | BB55: 0 | BC55: 0 | BD55: 0 | BE55: 0 | BF55: 2654412.455
C56: 現在価値での収支 | G56: =G55*G41 -> 225000 | H56: 791597.4112 | I56: 773800.0109 | J56: 756402.7477 | K56: 0 | L56: 0 | M56: 0 | N56: 0 | O56: 0 | P56: 0 | Q56: 0 | R56: 0 | S56: 0 | T56: 0 | U56: 0 | V56: 0 | W56: 0 | X56: 0 | Y56: 0 | Z56: 0 | AA56: 0 | AB56: 0 | AC56: 0 | AD56: 0 | AE56: 0 | AF56: 0 | AG56: 0 | AH56: 0 | AI56: 0 | AJ56: 0 | AK56: 0 | AL56: 0 | AM56: 0 | AN56: 0 | AO56: 0 | AP56: 0 | AQ56: 0 | AR56: 0 | AS56: 0 | AT56: 0 | AU56: 0 | AV56: 0 | AW56: 0 | AX56: 0 | AY56: 0 | AZ56: 0 | BA56: 0 | BB56: 0 | BC56: 0 | BD56: 0 | BE56: 0 | BF56: =SUM(G56:BE56) -> 2546800.17
C58: ■採用手法での公共の収支 | G58: 整備期間 | H58: 維持管理・運営期間
F59: 仮定した内容 | G59: -1 | H59: 1 | I59: 2 | J59: 3 | K59: 4 | L59: 5 | M59: 6 | N59: 7 | O59: 8 | P59: 9 | Q59: 10 | R59: 11 | S59: 12 | T59: 13 | U59: 14 | V59: 15 | W59: 16 | X59: 17 | Y59: 18 | Z59: 19 | AA59: 20 | AB59: 21 | AC59: 22 | AD59: 23 | AE59: 24 | AF59: 25 | AG59: 26 | AH59: 27 | AI59: 28 | AJ59: 29 | AK59: 30 | AL59: 31 | AM59: 32 | AN59: 33 | AO59: 34 | AP59: 35 | AQ59: 36 | AR59: 37 | AS59: 38 | AT59: 39 | AU59: 40 | AV59: 41 | AW59: 42 | AX59: 43 | AY59: 44 | AZ59: 45 | BA59: 46 | BB59: 47 | BC59: 48 | BD59: 49 | BE59: 50 | BF59: 合計
D60: 整備費 | E60: 補助金・交付金分支払 | F60: =K20 -> 2612500 | G60: =F60 -> 2612500 | BF60: =SUM(G60:BE60) -> 2612500
E61: 一般財源 | F61: =K22 -> 0 | G61: =F61 -> 0 | BF61: =SUM(G61:BE61) -> 0
E62: 起債元金・償還元金 | F62: =K21 -> 0 | H62: =IF(H44>$K$6,0,IF($K$25=$K$125,IF($K$24=H44,$F$62,0),IF($K$25=$M$125,$F$62/$K$24,IF($K$25=$L$125,PPMT($K$23,H44,$K$24,-$K$21,0))))) -> 0 | I62: =IF(I44>$K$6,0,IF($K$25=$K$125,IF($K$24=I44,$F$62,0),IF($K$25=$M$125,$F$62/$K$24,IF($K$25=$L$125,PPMT($K$23,I44,$K$24,-$K$21,0))))) -> 0 | J62: 0 | K62: 0 | L62: 0 | M62: 0 | N62: 0 | O62: 0 | P62: 0 | Q62: 0 | R62: 0 | S62: 0 | T62: 0 | U62: 0 | V62: 0 | W62: 0 | X62: 0 | Y62: 0 | Z62: 0 | AA62: 0 | AB62: 0 | AC62: 0 | AD62: 0 | AE62: 0 | AF62: 0 | AG62: 0 | AH62: 0 | AI62: 0 | AJ62: 0 | AK62: 0 | AL62: 0 | AM62: 0 | AN62: 0 | AO62: 0 | AP62: 0 | AQ62: 0 | AR62: 0 | AS62: 0 | AT62: 0 | AU62: 0 | AV62: 0 | AW62: 0 | AX62: 0 | AY62: 0 | AZ62: 0 | BA62: 0 | BB62: 0 | BC62: 0 | BD62: 0 | BE62: 0 | BF62: =SUM(G62:BE62) -> 0
D63: 資金調達費 | E63: 起債金利 | F63: =K23 -> 0.011 | H63: =IF(H44>$K$6,0,IF($K$25=$K$125,H128*$F$63,IF($K$25=$M$125,H128*$F$63,IF($K$25=$L$125,IPMT($K$23,H44,$K$24,-$K$21,0,))))) -> 0 | I63: =IF(I44>$K$6,0,IF($K$25=$K$125,I128*$F$63,IF($K$25=$M$125,I128*$F$63,IF($K$25=$L$125,IPMT($K$23,I44,$K$24,-$K$21,0,))))) -> 0 | J63: 0 | K63: 0 | L63: 0 | M63: 0 | N63: 0 | O63: 0 | P63: 0 | Q63: 0 | R63: 0 | S63: 0 | T63: 0 | U63: 0 | V63: 0 | W63: 0 | X63: 0 | Y63: 0 | Z63: 0 | AA63: 0 | AB63: 0 | AC63: 0 | AD63: 0 | AE63: 0 | AF63: 0 | AG63: 0 | AH63: 0 | AI63: 0 | AJ63: 0 | AK63: 0 | AL63: 0 | AM63: 0 | AN63: 0 | AO63: 0 | AP63: 0 | AQ63: 0 | AR63: 0 | AS63: 0 | AT63: 0 | AU63: 0 | AV63: 0 | AW63: 0 | AX63: 0 | AY63: 0 | AZ63: 0 | BA63: 0 | BB63: 0 | BC63: 0 | BD63: 0 | BE63: 0 | BF63: =SUM(G63:BE63) -> 0
D64: 整備費の対価 | E64: 割賦元金 | F64: =F79 -> 0 | H64: =IF(H59>$K$6,0,H79) -> 0 | I64: 0 | J64: 0 | K64: 0 | L64: 0 | M64: 0 | N64: 0 | O64: 0 | P64: 0 | Q64: 0 | R64: 0 | S64: 0 | T64: 0 | U64: 0 | V64: 0 | W64: 0 | X64: 0 | Y64: 0 | Z64: 0 | AA64: 0 | AB64: 0 | AC64: 0 | AD64: 0 | AE64: 0 | AF64: 0 | AG64: 0 | AH64: 0 | AI64: 0 | AJ64: 0 | AK64: 0 | AL64: 0 | AM64: 0 | AN64: 0 | AO64: 0 | AP64: 0 | AQ64: 0 | AR64: 0 | AS64: 0 | AT64: 0 | AU64: 0 | AV64: 0 | AW64: 0 | AX64: 0 | AY64: 0 | AZ64: 0 | BA64: 0 | BB64: 0 | BC64: 0 | BD64: 0 | BE64: 0 | BF64: =SUM(G64:BE64) -> 0
E65: 割賦金利 | F65: =K32 -> 0.016 | H65: =IF(H59>$K$6,0,H80) -> 0 | I65: 0 | J65: 0 | K65: 0 | L65: 0 | M65: 0 | N65: 0 | O65: 0 | P65: 0 | Q65: 0 | R65: 0 | S65: 0 | T65: 0 | U65: 0 | V65: 0 | W65: 0 | X65: 0 | Y65: 0 | Z65: 0 | AA65: 0 | AB65: 0 | AC65: 0 | AD65: 0 | AE65: 0 | AF65: 0 | AG65: 0 | AH65: 0 | AI65: 0 | AJ65: 0 | AK65: 0 | AL65: 0 | AM65: 0 | AN65: 0 | AO65: 0 | AP65: 0 | AQ65: 0 | AR65: 0 | AS65: 0 | AT65: 0 | AU65: 0 | AV65: 0 | AW65: 0 | AX65: 0 | AY65: 0 | AZ65: 0 | BA65: 0 | BB65: 0 | BC65: 0 | BD65: 0 | BE65: 0 | BF65: =SUM(G65:BE65) -> 0
D66: 運営費の対価 | F66: =IF(K4=M124,0,K9) -> 115000 | H66: =IF(H59>$K$6,0,$F$66) -> 115000 | I66: =IF(I59>$K$6,0,$F$66) -> 115000 | J66: 115000 | K66: 0 | L66: 0 | M66: 0 | N66: 0 | O66: 0 | P66: 0 | Q66: 0 | R66: 0 | S66: 0 | T66: 0 | U66: 0 | V66: 0 | W66: 0 | X66: 0 | Y66: 0 | Z66: 0 | AA66: 0 | AB66: 0 | AC66: 0 | AD66: 0 | AE66: 0 | AF66: 0 | AG66: 0 | AH66: 0 | AI66: 0 | AJ66: 0 | AK66: 0 | AL66: 0 | AM66: 0 | AN66: 0 | AO66: 0 | AP66: 0 | AQ66: 0 | AR66: 0 | AS66: 0 | AT66: 0 | AU66: 0 | AV66: 0 | AW66: 0 | AX66: 0 | AY66: 0 | AZ66: 0 | BA66: 0 | BB66: 0 | BC66: 0 | BD66: 0 | BE66: 0 | BF66: 345000
D67: 採用手法における対価の調整 | F67: =IF(K4=M124,0,IF(K4=N124,0,K37))+IF(K4=N124,-K10,0) -> 717265.9044 | H67: =IF(H59>$K$6,0,$F$67) -> 717265.9044 | I67: 717265.9044 | J67: 717265.9044 | K67: 0 | L67: 0 | M67: 0 | N67: 0 | O67: 0 | P67: 0 | Q67: 0 | R67: 0 | S67: 0 | T67: 0 | U67: 0 | V67: 0 | W67: 0 | X67: 0 | Y67: 0 | Z67: 0 | AA67: 0 | AB67: 0 | AC67: 0 | AD67: 0 | AE67: 0 | AF67: 0 | AG67: 0 | AH67: 0 | AI67: 0 | AJ67: 0 | AK67: 0 | AL67: 0 | AM67: 0 | AN67: 0 | AO67: 0 | AP67: 0 | AQ67: 0 | AR67: 0 | AS67: 0 | AT67: 0 | AU67: 0 | AV67: 0 | AW67: 0 | AX67: 0 | AY67: 0 | AZ67: 0 | BA67: 0 | BB67: 0 | BC67: 0 | BD67: 0 | BE67: 0 | BF67: 2151797.713
D68: 調査等費用 | F68: =K35 -> 35000 | G68: =F68 -> 35000 | BF68: 35000
C69: 支出合計（A） | G69: =SUM(G60:G68) -> 2647500 | H69: =SUM(H60:H68) -> 832265.9044 | I69: 832265.9044 | J69: 832265.9044 | K69: 0 | L69: 0 | M69: 0 | N69: 0 | O69: 0 | P69: 0 | Q69: 0 | R69: 0 | S69: 0 | T69: 0 | U69: 0 | V69: 0 | W69: 0 | X69: 0 | Y69: 0 | Z69: 0 | AA69: 0 | AB69: 0 | AC69: 0 | AD69: 0 | AE69: 0 | AF69: 0 | AG69: 0 | AH69: 0 | AI69: 0 | AJ69: 0 | AK69: 0 | AL69: 0 | AM69: 0 | AN69: 0 | AO69: 0 | AP69: 0 | AQ69: 0 | AR69: 0 | AS69: 0 | AT69: 0 | AU69: 0 | AV69: 0 | AW69: 0 | AX69: 0 | AY69: 0 | AZ69: 0 | BA69: 0 | BB69: 0 | BC69: 0 | BD69: 0 | BE69: 0 | BF69: 5144297.713
D70: 補助金・交付金分収入 | F70: =F60 -> 2612500 | G70: =F70 -> 2612500 | BF70: =SUM(G70:BE70) -> 2612500
C71: 収入合計（B) | G71: =G70 -> 2612500 | H71: 0 | I71: 0 | J71: 0 | K71: 0 | L71: 0 | M71: 0 | N71: 0 | O71: 0 | P71: 0 | Q71: 0 | R71: 0 | S71: 0 | T71: 0 | U71: 0 | V71: 0 | W71: 0 | X71: 0 | Y71: 0 | Z71: 0 | AA71: 0 | AB71: 0 | AC71: 0 | AD71: 0 | AE71: 0 | AF71: 0 | AG71: 0 | AH71: 0 | AI71: 0 | AJ71: 0 | AK71: 0 | AL71: 0 | AM71: 0 | AN71: 0 | AO71: 0 | AP71: 0 | AQ71: 0 | AR71: 0 | AS71: 0 | AT71: 0 | AU71: 0 | AV71: 0 | AW71: 0 | AX71: 0 | AY71: 0 | AZ71: 0 | BA71: 0 | BB71: 0 | BC71: 0 | BD71: 0 | BE71: 0 | BF71: =SUM(G71:BE71) -> 2612500
C72: 純支出（C）＝（A）-（B） | G72: =G69-G71 -> 35000 | H72: 832265.9044 | I72: 832265.9044 | J72: 832265.9044 | K72: 0 | L72: 0 | M72: 0 | N72: 0 | O72: 0 | P72: 0 | Q72: 0 | R72: 0 | S72: 0 | T72: 0 | U72: 0 | V72: 0 | W72: 0 | X72: 0 | Y72: 0 | Z72: 0 | AA72: 0 | AB72: 0 | AC72: 0 | AD72: 0 | AE72: 0 | AF72: 0 | AG72: 0 | AH72: 0 | AI72: 0 | AJ72: 0 | AK72: 0 | AL72: 0 | AM72: 0 | AN72: 0 | AO72: 0 | AP72: 0 | AQ72: 0 | AR72: 0 | AS72: 0 | AT72: 0 | AU72: 0 | AV72: 0 | AW72: 0 | AX72: 0 | AY72: 0 | AZ72: 0 | BA72: 0 | BB72: 0 | BC72: 0 | BD72: 0 | BE72: 0 | BF72: 2531797.713
C73: 現在価値での収支 | G73: =G72*G41 -> 35000 | H73: 813554.1587 | I73: 795263.1072 | J73: 777383.2915 | K73: 0 | L73: 0 | M73: 0 | N73: 0 | O73: 0 | P73: 0 | Q73: 0 | R73: 0 | S73: 0 | T73: 0 | U73: 0 | V73: 0 | W73: 0 | X73: 0 | Y73: 0 | Z73: 0 | AA73: 0 | AB73: 0 | AC73: 0 | AD73: 0 | AE73: 0 | AF73: 0 | AG73: 0 | AH73: 0 | AI73: 0 | AJ73: 0 | AK73: 0 | AL73: 0 | AM73: 0 | AN73: 0 | AO73: 0 | AP73: 0 | AQ73: 0 | AR73: 0 | AS73: 0 | AT73: 0 | AU73: 0 | AV73: 0 | AW73: 0 | AX73: 0 | AY73: 0 | AZ73: 0 | BA73: 0 | BB73: 0 | BC73: 0 | BD73: 0 | BE73: 0 | BF73: =SUM(G73:BE73) -> 2421200.557
C76: ■採用手法での民間の損益 | F76: =IF(K4=M124,"考慮不要",IF(K4=N124,"考慮不要","")) ->  | G76: 整備期間 | H76: 維持管理・運営期間
F77: 仮定した内容 | G77: -1 | H77: 1 | I77: 2 | J77: 3 | K77: 4 | L77: 5 | M77: 6 | N77: 7 | O77: 8 | P77: 9 | Q77: 10 | R77: 11 | S77: 12 | T77: 13 | U77: 14 | V77: 15 | W77: 16 | X77: 17 | Y77: 18 | Z77: 19 | AA77: 20 | AB77: 21 | AC77: 22 | AD77: 23 | AE77: 24 | AF77: 25 | AG77: 26 | AH77: 27 | AI77: 28 | AJ77: 29 | AK77: 30 | AL77: 31 | AM77: 32 | AN77: 33 | AO77: 34 | AP77: 35 | AQ77: 36 | AR77: 37 | AS77: 38 | AT77: 39 | AU77: 40 | AV77: 41 | AW77: 42 | AX77: 43 | AY77: 44 | AZ77: 45 | BA77: 46 | BB77: 47 | BC77: 48 | BD77: 49 | BE77: 50 | BF77: 合計
D78: 整備費の対価 | E78: 一括受領分 | F78: =IF(K4=M124,0,SUM(F60:F62)) -> 2612500 | G78: =F78 -> 2612500 | BF78: =SUM(G78:BE78) -> 2612500
E79: 割賦元金 | F79: =K8*K17 -> 0 | H79: =IF(H77>$K$6,0,PPMT($K$32,H77,$K$33,-$F$79,0)) -> 0 | I79: 0 | J79: 0 | K79: 0 | L79: 0 | M79: 0 | N79: 0 | O79: 0 | P79: 0 | Q79: 0 | R79: 0 | S79: 0 | T79: 0 | U79: 0 | V79: 0 | W79: 0 | X79: 0 | Y79: 0 | Z79: 0 | AA79: 0 | AB79: 0 | AC79: 0 | AD79: 0 | AE79: 0 | AF79: 0 | AG79: 0 | AH79: 0 | AI79: 0 | AJ79: 0 | AK79: 0 | AL79: 0 | AM79: 0 | AN79: 0 | AO79: 0 | AP79: 0 | AQ79: 0 | AR79: 0 | AS79: 0 | AT79: 0 | AU79: 0 | AV79: 0 | AW79: 0 | AX79: 0 | AY79: 0 | AZ79: 0 | BA79: 0 | BB79: 0 | BC79: 0 | BD79: 0 | BE79: 0 | BF79: =SUM(G79:BE79) -> 0
E80: 割賦金利 | F80: =F65 -> 0.016 | H80: =IF(H77>$K$6,0,IPMT($K$32,H77,$K$33,-$F$79,0)) -> 0 | I80: 0 | J80: 0 | K80: 0 | L80: 0 | M80: 0 | N80: 0 | O80: 0 | P80: 0 | Q80: 0 | R80: 0 | S80: 0 | T80: 0 | U80: 0 | V80: 0 | W80: 0 | X80: 0 | Y80: 0 | Z80: 0 | AA80: 0 | AB80: 0 | AC80: 0 | AD80: 0 | AE80: 0 | AF80: 0 | AG80: 0 | AH80: 0 | AI80: 0 | AJ80: 0 | AK80: 0 | AL80: 0 | AM80: 0 | AN80: 0 | AO80: 0 | AP80: 0 | AQ80: 0 | AR80: 0 | AS80: 0 | AT80: 0 | AU80: 0 | AV80: 0 | AW80: 0 | AX80: 0 | AY80: 0 | AZ80: 0 | BA80: 0 | BB80: 0 | BC80: 0 | BD80: 0 | BE80: 0 | BF80: =SUM(G80:BE80) -> 0
D81: 運営費の対価 | F81: =IF(K4=M124,0,IF(K4=N124,0,K9)) -> 115000 | H81: =IF(H77>$K$6,0,$F$81) -> 115000 | I81: 115000 | J81: 115000 | K81: 0 | L81: 0 | M81: 0 | N81: 0 | O81: 0 | P81: 0 | Q81: 0 | R81: 0 | S81: 0 | T81: 0 | U81: 0 | V81: 0 | W81: 0 | X81: 0 | Y81: 0 | Z81: 0 | AA81: 0 | AB81: 0 | AC81: 0 | AD81: 0 | AE81: 0 | AF81: 0 | AG81: 0 | AH81: 0 | AI81: 0 | AJ81: 0 | AK81: 0 | AL81: 0 | AM81: 0 | AN81: 0 | AO81: 0 | AP81: 0 | AQ81: 0 | AR81: 0 | AS81: 0 | AT81: 0 | AU81: 0 | AV81: 0 | AW81: 0 | AX81: 0 | AY81: 0 | AZ81: 0 | BA81: 0 | BB81: 0 | BC81: 0 | BD81: 0 | BE81: 0 | BF81: 345000
D82: 採用手法における対価の調整 | F82: =IF(K4=M124,0,IF(K4=N124,0,K37)) -> 717265.9044 | H82: =IF(H77>$K$6,0,$F$82) -> 717265.9044 | I82: 717265.9044 | J82: 717265.9044 | K82: 0 | L82: 0 | M82: 0 | N82: 0 | O82: 0 | P82: 0 | Q82: 0 | R82: 0 | S82: 0 | T82: 0 | U82: 0 | V82: 0 | W82: 0 | X82: 0 | Y82: 0 | Z82: 0 | AA82: 0 | AB82: 0 | AC82: 0 | AD82: 0 | AE82: 0 | AF82: 0 | AG82: 0 | AH82: 0 | AI82: 0 | AJ82: 0 | AK82: 0 | AL82: 0 | AM82: 0 | AN82: 0 | AO82: 0 | AP82: 0 | AQ82: 0 | AR82: 0 | AS82: 0 | AT82: 0 | AU82: 0 | AV82: 0 | AW82: 0 | AX82: 0 | AY82: 0 | AZ82: 0 | BA82: 0 | BB82: 0 | BC82: 0 | BD82: 0 | BE82: 0 | BF82: 2151797.713
D83: 利用料金収入 | F83: =IF(K4=M124,0,IF(K4=N124,0,K10)) -> 110 | H83: =IF(H77>$K$6,0,$F$83) -> 110 | I83: 110 | J83: 110 | K83: 0 | L83: 0 | M83: 0 | N83: 0 | O83: 0 | P83: 0 | Q83: 0 | R83: 0 | S83: 0 | T83: 0 | U83: 0 | V83: 0 | W83: 0 | X83: 0 | Y83: 0 | Z83: 0 | AA83: 0 | AB83: 0 | AC83: 0 | AD83: 0 | AE83: 0 | AF83: 0 | AG83: 0 | AH83: 0 | AI83: 0 | AJ83: 0 | AK83: 0 | AL83: 0 | AM83: 0 | AN83: 0 | AO83: 0 | AP83: 0 | AQ83: 0 | AR83: 0 | AS83: 0 | AT83: 0 | AU83: 0 | AV83: 0 | AW83: 0 | AX83: 0 | AY83: 0 | AZ83: 0 | BA83: 0 | BB83: 0 | BC83: 0 | BD83: 0 | BE83: 0 | BF83: 330
C84: 収入合計（A) | G84: =SUM(G78:G83) -> 2612500 | H84: =SUM(H78:H83) -> 832375.9044 | I84: 832375.9044 | J84: 832375.9044 | K84: 0 | L84: 0 | M84: 0 | N84: 0 | O84: 0 | P84: 0 | Q84: 0 | R84: 0 | S84: 0 | T84: 0 | U84: 0 | V84: 0 | W84: 0 | X84: 0 | Y84: 0 | Z84: 0 | AA84: 0 | AB84: 0 | AC84: 0 | AD84: 0 | AE84: 0 | AF84: 0 | AG84: 0 | AH84: 0 | AI84: 0 | AJ84: 0 | AK84: 0 | AL84: 0 | AM84: 0 | AN84: 0 | AO84: 0 | AP84: 0 | AQ84: 0 | AR84: 0 | AS84: 0 | AT84: 0 | AU84: 0 | AV84: 0 | AW84: 0 | AX84: 0 | AY84: 0 | AZ84: 0 | BA84: 0 | BB84: 0 | BC84: 0 | BD84: 0 | BE84: 0 | BF84: 5109627.713
D85: 整備費 | F85: =IF(K4=M124,0,K8) -> 4750000 | G85: =IF(K4=M124,0,SUM(K20:K22)) -> 2612500 | H85: =IF(H77>$K$6,0,PPMT($K$32,H77,$K$33,-($F$85-$G$85),0)) -> 701220.6324 | I85: 712440.1625 | J85: 723839.2051 | K85: 0 | L85: 0 | M85: 0 | N85: 0 | O85: 0 | P85: 0 | Q85: 0 | R85: 0 | S85: 0 | T85: 0 | U85: 0 | V85: 0 | W85: 0 | X85: 0 | Y85: 0 | Z85: 0 | AA85: 0 | AB85: 0 | AC85: 0 | AD85: 0 | AE85: 0 | AF85: 0 | AG85: 0 | AH85: 0 | AI85: 0 | AJ85: 0 | AK85: 0 | AL85: 0 | AM85: 0 | AN85: 0 | AO85: 0 | AP85: 0 | AQ85: 0 | AR85: 0 | AS85: 0 | AT85: 0 | AU85: 0 | AV85: 0 | AW85: 0 | AX85: 0 | AY85: 0 | AZ85: 0 | BA85: 0 | BB85: 0 | BC85: 0 | BD85: 0 | BE85: 0 | BF85: 4750000
D86: 運営費 | F86: =IF(K4=M124,0,IF(K4=N124,0,K9)) -> 115000 | H86: =IF(H77>$K$6,0,$F$86) -> 115000 | I86: 115000 | J86: 115000 | K86: 0 | L86: 0 | M86: 0 | N86: 0 | O86: 0 | P86: 0 | Q86: 0 | R86: 0 | S86: 0 | T86: 0 | U86: 0 | V86: 0 | W86: 0 | X86: 0 | Y86: 0 | Z86: 0 | AA86: 0 | AB86: 0 | AC86: 0 | AD86: 0 | AE86: 0 | AF86: 0 | AG86: 0 | AH86: 0 | AI86: 0 | AJ86: 0 | AK86: 0 | AL86: 0 | AM86: 0 | AN86: 0 | AO86: 0 | AP86: 0 | AQ86: 0 | AR86: 0 | AS86: 0 | AT86: 0 | AU86: 0 | AV86: 0 | AW86: 0 | AX86: 0 | AY86: 0 | AZ86: 0 | BA86: 0 | BB86: 0 | BC86: 0 | BD86: 0 | BE86: 0 | BF86: 345000
D87: 借入金利 | H87: =IF(H77>$K$6,0,IPMT($K$29,H77,$K$30,-$K$28,0)) -> 0 | I87: =IF(I77>$K$6,0,IPMT($K$29,I77,$K$30,-$K$28,0)) -> 0 | J87: 0 | K87: 0 | L87: 0 | M87: 0 | N87: 0 | O87: 0 | P87: 0 | Q87: 0 | R87: 0 | S87: 0 | T87: 0 | U87: 0 | V87: 0 | W87: 0 | X87: 0 | Y87: 0 | Z87: 0 | AA87: 0 | AB87: 0 | AC87: 0 | AD87: 0 | AE87: 0 | AF87: 0 | AG87: 0 | AH87: 0 | AI87: 0 | AJ87: 0 | AK87: 0 | AL87: 0 | AM87: 0 | AN87: 0 | AO87: 0 | AP87: 0 | AQ87: 0 | AR87: 0 | AS87: 0 | AT87: 0 | AU87: 0 | AV87: 0 | AW87: 0 | AX87: 0 | AY87: 0 | AZ87: 0 | BA87: 0 | BB87: 0 | BC87: 0 | BD87: 0 | BE87: 0 | BF87: 0
C88: 費用合計（B） | G88: =SUM(G85:G87) -> 2612500 | H88: 816220.6324 | I88: 827440.1625 | J88: 838839.2051 | K88: 0 | L88: 0 | M88: 0 | N88: 0 | O88: 0 | P88: 0 | Q88: 0 | R88: 0 | S88: 0 | T88: 0 | U88: 0 | V88: 0 | W88: 0 | X88: 0 | Y88: 0 | Z88: 0 | AA88: 0 | AB88: =SUM(AB85:AB87) -> 0 | AC88: 0 | AD88: 0 | AE88: 0 | AF88: 0 | AG88: 0 | AH88: 0 | AI88: 0 | AJ88: 0 | AK88: 0 | AL88: 0 | AM88: 0 | AN88: 0 | AO88: 0 | AP88: 0 | AQ88: 0 | AR88: 0 | AS88: 0 | AT88: 0 | AU88: 0 | AV88: 0 | AW88: 0 | AX88: 0 | AY88: 0 | AZ88: 0 | BA88: 0 | BB88: 0 | BC88: 0 | BD88: 0 | BE88: 0 | BF88: 5095000
C89: 単年度損益（C）＝（A）-（B） | G89: =G84-G88 -> 0 | H89: =H84-H88 -> 16155.27197 | I89: =I84-I88 -> 4935.74185 | J89: -6463.30075 | K89: 0 | L89: 0 | M89: 0 | N89: 0 | O89: 0 | P89: 0 | Q89: 0 | R89: 0 | S89: 0 | T89: 0 | U89: 0 | V89: 0 | W89: 0 | X89: 0 | Y89: 0 | Z89: 0 | AA89: 0 | AB89: 0 | AC89: 0 | AD89: 0 | AE89: 0 | AF89: 0 | AG89: 0 | AH89: 0 | AI89: 0 | AJ89: 0 | AK89: 0 | AL89: 0 | AM89: 0 | AN89: 0 | AO89: 0 | AP89: 0 | AQ89: 0 | AR89: 0 | AS89: 0 | AT89: 0 | AU89: 0 | AV89: 0 | AW89: 0 | AX89: 0 | AY89: 0 | AZ89: 0 | BA89: 0 | BB89: 0 | BC89: 0 | BD89: 0 | BE89: 0 | BF89: 14627.71307
C90: 法人税等 | G90: =G89*$K$34 -> 0 | H90: =H89*$K$34 -> 4841.735009 | I90: =I89*$K$34 -> 1479.241832 | J90: -1937.051235 | K90: 0 | L90: 0 | M90: 0 | N90: 0 | O90: 0 | P90: 0 | Q90: 0 | R90: 0 | S90: 0 | T90: 0 | U90: 0 | V90: 0 | W90: 0 | X90: 0 | Y90: 0 | Z90: 0 | AA90: 0 | AB90: 0 | AC90: 0 | AD90: 0 | AE90: 0 | AF90: 0 | AG90: 0 | AH90: 0 | AI90: 0 | AJ90: 0 | AK90: 0 | AL90: 0 | AM90: 0 | AN90: 0 | AO90: 0 | AP90: 0 | AQ90: 0 | AR90: 0 | AS90: 0 | AT90: 0 | AU90: 0 | AV90: 0 | AW90: 0 | AX90: 0 | AY90: 0 | AZ90: 0 | BA90: 0 | BB90: 0 | BC90: 0 | BD90: 0 | BE90: 0 | BF90: 4383.925606
C91: 税引後当期損益 | G91: =G89-G90 -> 0 | H91: =H89-H90 -> 11313.53696 | I91: =I89-I90 -> 3456.500017 | J91: -4526.249516 | K91: 0 | L91: 0 | M91: 0 | N91: 0 | O91: 0 | P91: 0 | Q91: 0 | R91: 0 | S91: 0 | T91: 0 | U91: 0 | V91: 0 | W91: 0 | X91: 0 | Y91: 0 | Z91: 0 | AA91: 0 | AB91: 0 | AC91: 0 | AD91: 0 | AE91: 0 | AF91: 0 | AG91: 0 | AH91: 0 | AI91: 0 | AJ91: 0 | AK91: 0 | AL91: 0 | AM91: 0 | AN91: 0 | AO91: 0 | AP91: 0 | AQ91: 0 | AR91: 0 | AS91: 0 | AT91: 0 | AU91: 0 | AV91: 0 | AW91: 0 | AX91: 0 | AY91: 0 | AZ91: 0 | BA91: 0 | BB91: 0 | BC91: 0 | BD91: 0 | BE91: 0 | BF91: 10243.78746
C92: 税引後当期損益+割賦原価-借入金元本償還 | H92: =IF(H77>$K$6,0,H91+H79-H111) -> 11313.53696 | I92: =IF(I77>$K$6,0,I91+I79-I111) -> 3456.500017 | J92: -4526.249516 | K92: 0 | L92: 0 | M92: 0 | N92: 0 | O92: 0 | P92: 0 | Q92: 0 | R92: 0 | S92: 0 | T92: 0 | U92: 0 | V92: 0 | W92: 0 | X92: 0 | Y92: 0 | Z92: 0 | AA92: 0 | AB92: 0 | AC92: 0 | AD92: 0 | AE92: 0 | AF92: 0 | AG92: 0 | AH92: 0 | AI92: 0 | AJ92: 0 | AK92: 0 | AL92: 0 | AM92: 0 | AN92: 0 | AO92: 0 | AP92: 0 | AQ92: 0 | AR92: 0 | AS92: 0 | AT92: 0 | AU92: 0 | AV92: 0 | AW92: 0 | AX92: 0 | AY92: 0 | AZ92: 0 | BA92: 0 | BB92: 0 | BC92: 0 | BD92: 0 | BE92: 0
C93: EIRR(※1） | F93: =IF(K4=M124,"考慮不要",IF(K4=N124,"考慮不要",IRR(G93:BE93))) -> 0.05 | G93: =IF(K4=M124,0,IF(K4=N124,0,-K27)) -> -10000 | H93: =H92 -> 11313.53696 | I93: =I92 -> 3456.500017 | J93: -4526.249516 | K93: 0 | L93: 0 | M93: 0 | N93: 0 | O93: 0 | P93: 0 | Q93: 0 | R93: 0 | S93: 0 | T93: 0 | U93: 0 | V93: 0 | W93: 0 | X93: 0 | Y93: 0 | Z93: 0 | AA93: 0 | AB93: 0 | AC93: 0 | AD93: 0 | AE93: 0 | AF93: 0 | AG93: 0 | AH93: 0 | AI93: 0 | AJ93: 0 | AK93: 0 | AL93: 0 | AM93: 0 | AN93: 0 | AO93: 0 | AP93: 0 | AQ93: 0 | AR93: 0 | AS93: 0 | AT93: 0 | AU93: 0 | AV93: 0 | AW93: 0 | AX93: 0 | AY93: 0 | AZ93: 0 | BA93: 0 | BB93: 0 | BC93: 0 | BD93: 0 | BE93: 0
C94: 税引後当期損益+割賦原価+支払利息 | H94: =H91+H64+H87 -> 11313.53696 | I94: 3456.500017 | J94: -4526.249516 | K94: 0 | L94: 0 | M94: 0 | N94: 0 | O94: 0 | P94: 0 | Q94: 0 | R94: 0 | S94: 0 | T94: 0 | U94: 0 | V94: 0 | W94: 0 | X94: 0 | Y94: 0 | Z94: 0 | AA94: 0 | AB94: 0 | AC94: 0 | AD94: 0 | AE94: 0 | AF94: 0 | AG94: 0 | AH94: 0 | AI94: 0 | AJ94: 0 | AK94: 0 | AL94: 0 | AM94: 0 | AN94: 0 | AO94: 0 | AP94: 0 | AQ94: 0 | AR94: 0 | AS94: 0 | AT94: 0 | AU94: 0 | AV94: 0 | AW94: 0 | AX94: 0 | AY94: 0 | AZ94: 0 | BA94: 0 | BB94: 0 | BC94: 0 | BD94: 0 | BE94: 0
C95: PIRR（※２） | F95: =IF(K4=L124,"考慮不要",IF(ISERROR(IRR(G95:BE95)),"",IRR(G95:BE95))) -> 考慮不要 | G95: =IF(K4=L124,0,(IF(K4=M124,0,-K8))) -> 0 | H95: =H94 -> 11313.53696 | I95: =I94 -> 3456.500017 | J95: -4526.249516 | K95: 0 | L95: 0 | M95: 0 | N95: 0 | O95: 0 | P95: 0 | Q95: 0 | R95: 0 | S95: 0 | T95: 0 | U95: 0 | V95: 0 | W95: 0 | X95: 0 | Y95: 0 | Z95: 0 | AA95: 0 | AB95: 0 | AC95: 0 | AD95: 0 | AE95: 0 | AF95: 0 | AG95: 0 | AH95: 0 | AI95: 0 | AJ95: 0 | AK95: 0 | AL95: 0 | AM95: 0 | AN95: 0 | AO95: 0 | AP95: 0 | AQ95: 0 | AR95: 0 | AS95: 0 | AT95: 0 | AU95: 0 | AV95: 0 | AW95: 0 | AX95: 0 | AY95: 0 | AZ95: 0 | BA95: 0 | BB95: 0 | BC95: 0 | BD95: 0 | BE95: 0
F97: ※１ EIRR（Equity Internal Rate of Return）は、投資家から見た内部収益率。資本金に対する配当等の利回りを示す指標。（今回は便宜的に、配当ではなく「税引後損益+割賦原価-借入金元本償還」で計算）
F98: EIRRは、「資本金」と「将来の配当金の現在価値の合計」とが等しくなるような割引率となりますが、エクセルを用いて計算する場合は、EIRRの計算結果が表されるセルに「＝IRR（-資本金が入力されているセル～将来の配当金（今回は便宜的に「税引後損益+割賦原価-借入金元本償還」）」の関数で計算できます。
F100: ※２ PIRR（Project Internal Rate of Return）は、初期投資額から見た内部収益率。初期投資額に対する配当金等の投資利回りを示す指標。（今回は便宜的に、配当ではなく「税引後損益+割賦原価+支払利息」で計算）
F101: PIRRは、「設備投資額」と「将来の配当金の現在価値の合計」とが等しくなるような割引率となりますが、エクセルを用いて計算する場合は、ＰIRRの計算結果が表されるセルに「＝IRR（-資本金が入力されているセル～将来の配当金（今回は便宜的に「税引後損益+割賦原価+支払利息」）」の関数で計算できます。なお、当初の整備費が0の場合はPIRRは計算できません。
C103: ■採用手法での民間の資金収支 | F103: =IF(K4=M124,"考慮不要",IF(K4=N124,"考慮不要","")) ->  | G103: 整備期間 | H103: 維持管理・運営期間
F104: 仮定した内容 | G104: -1 | H104: 1 | I104: 2 | J104: 3 | K104: 4 | L104: 5 | M104: 6 | N104: 7 | O104: 8 | P104: 9 | Q104: 10 | R104: 11 | S104: 12 | T104: 13 | U104: 14 | V104: 15 | W104: 16 | X104: 17 | Y104: 18 | Z104: 19 | AA104: 20 | AB104: 21 | AC104: 22 | AD104: 23 | AE104: 24 | AF104: 25 | AG104: 26 | AH104: 27 | AI104: 28 | AJ104: 29 | AK104: 30 | AL104: 31 | AM104: 32 | AN104: 33 | AO104: 34 | AP104: 35 | AQ104: 36 | AR104: 37 | AS104: 38 | AT104: 39 | AU104: 40 | AV104: 41 | AW104: 42 | AX104: 43 | AY104: 44 | AZ104: 45 | BA104: 46 | BB104: 47 | BC104: 48 | BD104: 49 | BE104: 50 | BF104: 合計
D105: 資本金 | F105: =IF(K4=M124,0,IF(K4=N124,0,K27)) -> 10000 | G105: =F105 -> 10000 | BF105: =SUM(G105:BE105) -> 10000
D106: 借入金 | F106: =K28 -> 0 | G106: =F106 -> 0 | BF106: =SUM(G106:BE106) -> 0
D107: 整備費の原価（一括受領分） | G107: =G78 -> 2612500 | H107: =H78 -> 0 | I107: =I78 -> 0 | J107: 0 | K107: 0 | L107: 0 | M107: 0 | N107: 0 | O107: 0 | P107: 0 | Q107: 0 | R107: 0 | S107: 0 | T107: 0 | U107: 0 | V107: 0 | W107: 0 | X107: 0 | Y107: 0 | Z107: 0 | AA107: 0 | AB107: 0 | AC107: 0 | AD107: 0 | AE107: 0 | AF107: 0 | AG107: 0 | AH107: 0 | AI107: 0 | AJ107: 0 | AK107: 0 | AL107: 0 | AM107: 0 | AN107: 0 | AO107: 0 | AP107: 0 | AQ107: 0 | AR107: 0 | AS107: 0 | AT107: 0 | AU107: 0 | AV107: 0 | AW107: 0 | AX107: 0 | AY107: 0 | AZ107: 0 | BA107: 0 | BB107: 0 | BC107: 0 | BD107: 0 | BE107: 0 | BF107: 2612500
D108: 整備費の原価（割賦受領分） | H108: =H79 -> 0 | I108: 0 | J108: 0 | K108: 0 | L108: 0 | M108: 0 | N108: 0 | O108: 0 | P108: 0 | Q108: 0 | R108: 0 | S108: 0 | T108: 0 | U108: 0 | V108: 0 | W108: 0 | X108: 0 | Y108: 0 | Z108: 0 | AA108: 0 | AB108: 0 | AC108: 0 | AD108: 0 | AE108: 0 | AF108: 0 | AG108: 0 | AH108: 0 | AI108: 0 | AJ108: 0 | AK108: 0 | AL108: 0 | AM108: 0 | AN108: 0 | AO108: 0 | AP108: 0 | AQ108: 0 | AR108: 0 | AS108: 0 | AT108: 0 | AU108: 0 | AV108: 0 | AW108: 0 | AX108: 0 | AY108: 0 | AZ108: 0 | BA108: 0 | BB108: 0 | BC108: 0 | BD108: 0 | BE108: 0 | BF108: 0
D109: 税引後単年度損益 | G109: =G91 -> 0 | H109: =H91 -> 11313.53696 | I109: 3456.500017 | J109: -4526.249516 | K109: 0 | L109: 0 | M109: 0 | N109: 0 | O109: 0 | P109: 0 | Q109: 0 | R109: 0 | S109: 0 | T109: 0 | U109: 0 | V109: 0 | W109: 0 | X109: 0 | Y109: 0 | Z109: 0 | AA109: 0 | AB109: 0 | AC109: 0 | AD109: 0 | AE109: 0 | AF109: 0 | AG109: 0 | AH109: 0 | AI109: 0 | AJ109: 0 | AK109: 0 | AL109: 0 | AM109: 0 | AN109: 0 | AO109: 0 | AP109: 0 | AQ109: 0 | AR109: 0 | AS109: 0 | AT109: 0 | AU109: 0 | AV109: 0 | AW109: 0 | AX109: 0 | AY109: 0 | AZ109: 0 | BA109: 0 | BB109: 0 | BC109: 0 | BD109: 0 | BE109: 0 | BF109: 10243.78746
C110: 資金収入合計（A) | G110: =SUM(G105:G109) -> 2622500 | H110: =SUM(H105:H109) -> 11313.53696 | I110: =SUM(I105:I109) -> 3456.500017 | J110: -4526.249516 | K110: 0 | L110: 0 | M110: 0 | N110: 0 | O110: 0 | P110: 0 | Q110: 0 | R110: 0 | S110: 0 | T110: 0 | U110: 0 | V110: 0 | W110: 0 | X110: 0 | Y110: 0 | Z110: 0 | AA110: 0 | AB110: 0 | AC110: 0 | AD110: 0 | AE110: 0 | AF110: 0 | AG110: 0 | AH110: 0 | AI110: 0 | AJ110: 0 | AK110: 0 | AL110: 0 | AM110: 0 | AN110: 0 | AO110: 0 | AP110: 0 | AQ110: 0 | AR110: 0 | AS110: 0 | AT110: 0 | AU110: 0 | AV110: 0 | AW110: 0 | AX110: 0 | AY110: 0 | AZ110: 0 | BA110: 0 | BB110: 0 | BC110: 0 | BD110: 0 | BE110: 0 | BF110: 2632743.787
D111: 借入金の元金返済 | F111: =K28 -> 0 | H111: =IF(H104>$K$6,0,PPMT($K$29,H77,$K$30,-$K$28,0)) -> 0 | I111: 0 | J111: 0 | K111: 0 | L111: 0 | M111: 0 | N111: 0 | O111: 0 | P111: 0 | Q111: 0 | R111: 0 | S111: 0 | T111: 0 | U111: 0 | V111: 0 | W111: 0 | X111: 0 | Y111: 0 | Z111: 0 | AA111: 0 | AB111: 0 | AC111: 0 | AD111: 0 | AE111: 0 | AF111: 0 | AG111: 0 | AH111: 0 | AI111: 0 | AJ111: 0 | AK111: 0 | AL111: 0 | AM111: 0 | AN111: 0 | AO111: 0 | AP111: 0 | AQ111: 0 | AR111: 0 | AS111: 0 | AT111: 0 | AU111: 0 | AV111: 0 | AW111: 0 | AX111: 0 | AY111: 0 | AZ111: 0 | BA111: 0 | BB111: 0 | BC111: 0 | BD111: 0 | BE111: 0 | BF111: 0
D112: 整備費 | F112: =IF(K4=M124,0,K8) -> 4750000 | G112: =F112 -> 4750000 | BF112: 4750000
C113: 資金支出合計（B) | G113: =SUM(G111:G112) -> 4750000 | H113: 0 | I113: 0 | J113: 0 | K113: 0 | L113: 0 | M113: 0 | N113: 0 | O113: 0 | P113: 0 | Q113: 0 | R113: 0 | S113: 0 | T113: 0 | U113: 0 | V113: 0 | W113: 0 | X113: 0 | Y113: 0 | Z113: 0 | AA113: 0 | AB113: =SUM(AB111:AB112) -> 0 | AC113: 0 | AD113: 0 | AE113: 0 | AF113: 0 | AG113: 0 | AH113: 0 | AI113: 0 | AJ113: 0 | AK113: 0 | AL113: 0 | AM113: 0 | AN113: 0 | AO113: 0 | AP113: 0 | AQ113: 0 | AR113: 0 | AS113: 0 | AT113: 0 | AU113: 0 | AV113: 0 | AW113: 0 | AX113: 0 | AY113: 0 | AZ113: 0 | BA113: 0 | BB113: 0 | BC113: 0 | BD113: 0 | BE113: 0 | BF113: 4750000
C114: 資金収支（C）＝（A）-（B） | G114: =G110-G113 -> -2127500 | H114: 11313.53696 | I114: 3456.500017 | J114: -4526.249516 | K114: 0 | L114: 0 | M114: 0 | N114: 0 | O114: 0 | P114: 0 | Q114: 0 | R114: 0 | S114: 0 | T114: 0 | U114: 0 | V114: 0 | W114: 0 | X114: 0 | Y114: 0 | Z114: 0 | AA114: 0 | AB114: 0 | AC114: 0 | AD114: 0 | AE114: 0 | AF114: 0 | AG114: 0 | AH114: 0 | AI114: 0 | AJ114: 0 | AK114: 0 | AL114: 0 | AM114: 0 | AN114: 0 | AO114: 0 | AP114: 0 | AQ114: 0 | AR114: 0 | AS114: 0 | AT114: 0 | AU114: 0 | AV114: 0 | AW114: 0 | AX114: 0 | AY114: 0 | AZ114: 0 | BA114: 0 | BB114: 0 | BC114: 0 | BD114: 0 | BE114: 0 | BF114: -2117256.213
AF116: 35 | BG116: 36
E117: 割賦元金の現在価値 | G117: =NPV($K$38,H79:BE79) -> 0 | H117: =G117+G118-G119-G121 -> 8.367351256e-11
E118: 税引後当期損益の現在価値 | G118: =NPV($K$38,H91:BE91) -> 10000
E119: 借入金の元金返済の現在価値 | G119: =NPV($K$38,H111:BE111) -> 0
E120: 「税引後当期損益+割賦原価-借入金元本償還」 | G120: =G117+G118-G119 -> 10000
E121: 資本金 | G121: =F105 -> 10000
K124: ①BTO・BOT・BOO・RO | L124: ②DBO | M124: ③BT | N124: ④指定管理者制度
K125: 期限一括 | L125: 元利均等 | M125: 元金均等
F126: 従来型手法 | G126: 年度初の起債 | H126: =F47 -> 2025000 | I126: =H126-H47 -> 1357370.848 | J126: =I126-I47 -> 682397.7761 | K126: 0 | L126: 0 | M126: 0 | N126: 0 | O126: 0 | P126: 0 | Q126: 0 | R126: 0 | S126: 0 | T126: 0 | U126: 0 | V126: 0 | W126: 0 | X126: 0 | Y126: 0 | Z126: 0 | AA126: 0 | AB126: 0 | AC126: 0 | AD126: 0 | AE126: 0 | AF126: 0 | AG126: 0 | AH126: 0 | AI126: 0 | AJ126: 0 | AK126: 0 | AL126: 0 | AM126: 0 | AN126: 0 | AO126: 0 | AP126: 0 | AQ126: 0 | AR126: 0 | AS126: 0 | AT126: 0 | AU126: 0 | AV126: 0 | AW126: 0 | AX126: 0 | AY126: 0 | AZ126: 0 | BA126: 0 | BB126: 0 | BC126: 0 | BD126: 0 | BE126: 0
F128: 採用手法 | G128: 年度初の起債 | H128: =F62 -> 0 | I128: =H128-H62 -> 0 | J128: =I128-I62 -> 0 | K128: 0 | L128: 0 | M128: 0 | N128: 0 | O128: 0 | P128: 0 | Q128: 0 | R128: 0 | S128: 0 | T128: 0 | U128: 0 | V128: 0 | W128: 0 | X128: 0 | Y128: 0 | Z128: 0 | AA128: 0 | AB128: 0 | AC128: 0 | AD128: 0 | AE128: 0 | AF128: 0 | AG128: 0 | AH128: 0 | AI128: 0 | AJ128: 0 | AK128: 0 | AL128: 0 | AM128: 0 | AN128: 0 | AO128: 0 | AP128: 0 | AQ128: 0 | AR128: 0 | AS128: 0 | AT128: 0 | AU128: 0 | AV128: 0 | AW128: 0 | AX128: 0 | AY128: 0 | AZ128: 0 | BA128: 0 | BB128: 0 | BC128: 0 | BD128: 0 | BE128: 0

Sheet 簡易な検討の計算表（記載例）
F1: ≪簡易な検討の計算表（記載例）≫ （単位：千円、年） | L1: のセルに想定されている条件を入力して下さい。なお、全ての入力が終了しましたら、左側の「VFM計算」のボタンをクリックして下さい。
F2: ■前提条件 | L2: 右記のセルに記載されている数値を「PPP/PFI手法簡易定量評価調書」に記載して下さい。 | Z2: ■簡易VFMの結果
I3: 従来型手法 | J3: 採用手法 の条件 | K3: 採用手法 | L3: 前提条件の入力方法 | R3: 仮定した前提条件 | AB3: 従来型手法 | AC3: 採用手法 | AD3: VFM
F4: 手法 | I4: 従来型手法 | K4: ①BTO・BOT・BOO・RO | L4: 採用手法（「①BTO・BOT・BOO・RO」、「②DBO」、「③BT」、「④指定管理者制度」）から選択して下さい。 （BOT・BOOは固定資産税等は考慮されていません。） | AA4: 金額 | AB4: =BF56 -> 5174652.038 | AC4: =BF73 -> 4723885.306 | AD4: =AB4-AC4 -> 450766.7321
G5: 整備期間 | I5: 1 | J5: 従来手法=採用手法 | K5: =I5 -> 1 | L5: 1年間に設定してあります（変更できません）。 | R5: 1年間と仮定 | AA5: ％ | AD5: =AD4/AB4 -> 0.08711053975
G6: 維持管理・運営期間 | I6: 20 | J6: 従来手法=採用手法 | K6: =I6 -> 20 | L6: 1～50年間から選択して下さい。 | R6: 20年間と仮定 | Z6: ※現在価値のVFM
F7: 事業期間
G8: 整備費 | I8: 5000000 | J8: 0.1 | K8: =IF(K4=N124,0,I8*(1-J8)) -> 4500000 | L8: 従来型手法の整備費と、採用手法におけるコスト削減割合（％）を記入して下さい。 | R8: 採用手法は従来型手法から10％の削減を見込めると仮定（今回は、従来型手法50億円、採用手法45億円と仮定） | Z8: ※VFMは現在価値に換算して比較を行うこととなっています。
G9: 維持管理・運営費（1年当たり） | I9: 50000 | J9: 0.1 | K9: =I9*(1-J9) -> 45000 | L9: 従来型手法の維持管理・運営費と、採用手法におけるコスト削減割合（％）を記入して下さい。 | R9: 採用手法は従来型手法から10％の削減を見込めると仮定（今回は、従来型手法50百万円/年、採用手法45百万円/年と仮定）
G10: 利用料金収入（1年当たり） | I10: 10000 | J10: 0.1 | K10: =I10*(1+J10) -> 11000 | L10: 従来型手法の利用料金収入と、採用手法における収入増加割合（％）を記入して下さい。 | R10: 採用手法は従来型手法から10％の増加を見込めると仮定（今回は、従来型手法10百万円/年、採用手法11百万円/年と仮定） | Z10: ■PPP/ＰＦＩ手法簡易定量評価調書
F11: 費用・収入 | AB11: 従来型手法 | AD11: 採用手法
G12: 現在価値への割引率 | I12: 0.026 | J12: 従来手法=採用手法 | K12: =I12 -> 0.026 | L12: 現在価値への割引率を記入して下さい。（標準は2.6％になります。） | R12: 現在価値への割引率は2.6％と仮定（整備期間を現在と仮定） | Z12: 整備等（運営等を除く。）費用 | AB12: =I8/100000 -> 50 | AD12: =K8/100000 -> 45
F13: 資金面の内容 | Z13: 〈算出根拠〉
G14: 整備費に対する補助金・交付金の割合 | I14: 0 | K14: 0 | L14: 整備費に対する補助金・交付金の割合（％）を記入して下さい。 | R14: 整備費に対する補助金・交付金の割合を入力 | Z14: 運営等費用 | AB14: =(I9*I6)/100000 -> 10 | AD14: =(K9*K6)/100000 -> 9
G15: 整備費に対する起債の割合 | I15: 0.75 | K15: 0 | L15: 整備費に対する起債の割合（％）を記入して下さい。 | R15: 整備費に対する起債の割合を入力 | Z15: 〈算出根拠〉
G16: 整備費に対する一般財源の割合 | I16: 0.25 | K16: 0 | L16: 整備費に対する一般財源の割合（％）を記入して下さい。 | R16: 整備費に対する一般財源の割合を入力 | Z16: 利用料金収入 | AB16: =(I10*I6)/100000 -> 2 | AD16: =(K10*K6)/100000 -> 2.2
G17: 整備費に対する民間資金の割合 | I17: ― | K17: =IF(K4=M124,0,(IF(K4=N124,0,IF(K4=L124,0,((1-SUM(K14:K16))))))) -> 1 | L17: 「100％－（補助金・交付金の割合＋起債の割合＋一般財源の割合）」が自動計算。BT・DB、DBOでは0％。 | R17: 整備費に対する民間資金の割合を入力 | Z17: 〈算出根拠〉
G18: 小計 | I18: =SUM(I14:I16) -> 1 | K18: =SUM(K14:K17) -> 1 | L18: 小計が100％になることを確認して下さい。 | R18: 合計は100％ | Z18: 資金調達費用 | AB18: =BF48/100000 -> 5.327880874 | AD18: =(BF63+BF65)/100000 -> 8.984454689
F19: 整備費に対する資金調達の内容 | I19: =IF(I18<1,"小計を↑100%にして下さい",IF(I18>1,"小計を↑100％にして下さい","")) ->  | K19: =IF(K18<1,"小計を↑100%に",IF(K18>1,"小計を↑100％に","")) ->  | Z19: 〈算出根拠〉
G20: 補助金・交付金の金額 | I20: =IF(K4=N124,0,$I$8*I14) -> 0 | K20: =$K$8*K14 -> 0 | R20: 整備費の資金調達について、補助金・交付金の額が自動計算されます。 | Z20: 調査等費用 | AB20: =I35 -> ― | AD20: =K35/100000 -> 0.25
G21: 起債金額 | I21: =IF(K4=N124,0,$I$8*I15) -> 3750000 | K21: =$K$8*K15 -> 0 | R21: 整備費の資金調達について、起債の額が自動計算されます。 | Z21: 〈算出根拠〉
G22: 一般財源の金額 | I22: =IF(K4=N124,0,$I$8*I16) -> 1250000 | K22: 0 | R22: 整備費の資金調達について、一般財源の額が自動計算されます。 | Z22: 税金 | AB22: ― | AD22: =BF90/100000 -> 0.02903705451
G23: 起債金利 | I23: 0.013 | J23: 従来手法=採用手法 | K23: =I23 -> 0.013 | L23: 起債金利を％で入力して下さい。 | R23: 起債金利を1.3％と仮定 | Z23: 〈算出根拠〉
G24: 起債償還期間 | I24: =I6 -> 20 | J24: 従来手法=採用手法 | K24: =I24 -> 20 | L24: 維持管理・運営期間になります。 | R24: 起債償還方法を20年間の元利均等償還と仮定 | Z24: 税引き後損益 | AB24: ― | AD24: =BF91/100000 -> 0.06139288791
G25: 起債償還方法 | I25: 元利均等 | J25: 従来手法=採用手法 | K25: =I25 -> 元利均等 | L25: 期限一括、元利均等、元金均等から選択して下さい。
F26: 整備費に対する公共側の資金調達 | Z26: 〈算出根拠〉
G27: 資本金額 | I27: ― | K27: 10000 | L27: SPCに必要な資本金額を記入して下さい。（標準は10百万円） | R27: 資本金額を10百万円と仮定 | Z27: 合計 | AB27: =BF55/100000 -> 63.32788087 | AD27: =BF72/100000 -> 61.10491918
G28: 借入金額 | I28: ― | K28: =IF(K17=0,0,(IF(K4=M124,0,IF(K4=L124,0,(K8*K17-K27))))) -> 4490000 | L28: 「民間資金の金額－資本金額」が自動計算。 | R28: 借入金額は整備費から資本金を減じた金額と仮定 | Z28: 〈算出根拠〉
G29: 借入金利 | I29: ― | K29: 0.018 | L29: 民間事業者の借入金利を入力して下さい。 | R29: 借入金利は起債金利+0.5％の1.8％と仮定 | Z29: 合計（現在価値） | AB29: =BF56/100000 -> 51.74652038 | AD29: =BF73/100000 -> 47.23885306
G30: 民間事業者の借入期間 | I30: ― | K30: =K6 -> 20 | L30: 維持管理・運営期間になります。 | R30: 借入金の返済方法は20年間（維持管理・運営期間と同じ）の元利均等返済と仮定 | Z30: 財政支出削減率 | AD30: =CONCATENATE("VFMは",ROUND(AB29-AD29,1),"億円 ",ROUND(AD5*100,1),"%") -> VFMは4.5億円 8.7%
F31: 採用手法における整備費の資金調達 | Z31: その他（前提条件等） | AB31: =CONCATENATE("事業期間",I6,"年間 割引率",I12*100,"％") -> 事業期間20年間 割引率2.6％
G32: 割賦金利 | I32: ― | K32: =K29 -> 0.018 | L32: 民間事業者の借入金利になります | R32: 公共が民間事業者に支払う整備費の対価の割賦金利は借入金利と同じ1.8％と仮定
G33: 割賦期間 | I33: ― | K33: =I6 -> 20 | L33: 維持管理・運営期間になります。 | R33: 公共が民間事業者に支払う整備費の対価の割賦払いは20年間（維持管理・運営期間と同じ）の元利均等払いと仮定
G34: 法人税等 | I34: ― | K34: 0.3211 | L34: 実効税率は32.11％を入力してあります。 | R34: 単年度損益に対して32.11％（実効税率）の法人税を想定
D35: 全ての入力が終了しましたら、 | G35: 調査等費用 | I35: ― | K35: 25000 | L35: 調査等費用を記入して下さい。（標準をPFI,DBOで35,000千円、DBで25,000円としています。） | R35: 調査等費用をPFI・DBOで35百万円、DBで25百万円と仮定
D36: 上記の「VFM計算」のボタンを | F36: 採用手法の内容
D37: クリックして下さい。 | G37: 採用手法における対価の調整 | I37: ― | K37: -10647.67756 | L37: 採用手法における対価の調整額で、自動計算されます。 | R37: 民間事業者のEIRRに必要な収益相当額が自動計算されます。
G38: 民間事業者のEIRR（※） | I38: ― | K38: 0.05 | L38: 民間事業者の収益（資本金に対する配当等の利回り）を記入して下さい。（標準は5％になります。） | R38: 民間事業者の収益相当額として、EIRRを5％程度にする収益相当額と仮定。
F39: 採用手法の民間事業者の収益
C41: 現在価値への換算割合 | G41: 1 | H41: =G41/(1+$I$12) -> 0.9746588694 | I41: =H41/(1+$I$12) -> 0.9499599117 | J41: =I41/(1+$I$12) -> 0.9258868535 | K41: 0.9024238338 | L41: 0.8795553936 | M41: 0.8572664655 | N41: 0.835542364 | O41: 0.8143687758 | P41: 0.7937317503 | Q41: 0.7736176904 | R41: 0.7540133435 | S41: 0.7349057928 | T41: 0.7162824492 | U41: 0.6981310421 | V41: 0.6804396122 | W41: 0.6631965031 | X41: =W41/(1+$I$12) -> 0.6463903539 | Y41: =X41/(1+$I$12) -> 0.6300100915 | Z41: 0.6140449235 | AA41: 0.5984843309 | AB41: =AA41/(1+$I$12) -> 0.5833180613 | AC41: 0.5685361221 | AD41: =AC41/(1+$I$12) -> 0.554128774 | AE41: =AD41/(1+$I$12) -> 0.5400865244 | AF41: =AE41/(1+$I$12) -> 0.5264001212 | AG41: 0.513060547 | AH41: 0.5000590127 | AI41: 0.4873869519 | AJ41: 0.4750360155 | AK41: 0.4629980658 | AL41: 0.4512651713 | AM41: 0.4398296017 | AN41: 0.4286838223 | AO41: 0.4178204896 | AP41: 0.407232446 | AQ41: 0.3969127154 | AR41: 0.3868544984 | AS41: 0.3770511681 | AT41: 0.3674962652 | AU41: 0.3581834943 | AV41: 0.3491067196 | AW41: 0.3402599606 | AX41: 0.3316373885 | AY41: 0.3232333222 | AZ41: 0.3150422243 | BA41: 0.3070586982 | BB41: 0.2992774836 | BC41: 0.2916934538 | BD41: 0.2843016119 | BE41: 0.2770970876
C42: （次年度の現在価値換算後の割合（前年度を1）＝1/（1+割引率））
C43: ■従来型手法での公共の収支 | G43: 整備期間 | H43: 維持管理・運営期間
F44: 仮定した内容 | G44: -1 | H44: 1 | I44: 2 | J44: 3 | K44: 4 | L44: 5 | M44: 6 | N44: 7 | O44: 8 | P44: 9 | Q44: 10 | R44: 11 | S44: 12 | T44: 13 | U44: 14 | V44: 15 | W44: 16 | X44: 17 | Y44: 18 | Z44: 19 | AA44: 20 | AB44: 21 | AC44: 22 | AD44: 23 | AE44: 24 | AF44: 25 | AG44: 26 | AH44: 27 | AI44: 28 | AJ44: 29 | AK44: 30 | AL44: 31 | AM44: 32 | AN44: 33 | AO44: 34 | AP44: 35 | AQ44: 36 | AR44: 37 | AS44: 38 | AT44: 39 | AU44: 40 | AV44: 41 | AW44: 42 | AX44: 43 | AY44: 44 | AZ44: 45 | BA44: 46 | BB44: 47 | BC44: 48 | BD44: 49 | BE44: 50 | BF44: 合計
D45: 整備費 | E45: 補助金・交付金分支払 | F45: =I20 -> 0 | G45: =F45 -> 0 | BF45: =SUM(G45:BE45) -> 0
E46: 一般財源 | F46: =I22 -> 1250000 | G46: =F46 -> 1250000 | BF46: =SUM(G46:BE46) -> 1250000
E47: 起債元金・償還元金 | F47: =I21 -> 3750000 | H47: =IF(H44>$I$6,0,IF($I$25=$K$125,IF($I$24=H44,$F$47,0),IF($I$25=$M$125,$F$47/$I$24,IF($I$25=$L$125,PPMT($I$23,H44,$I$24,-$I$21,0))))) -> 165389.4044 | I47: =IF(I44>$I$6,0,IF($I$25=$K$125,IF($I$24=I44,$F$47,0),IF($I$25=$M$125,$F$47/$I$24,IF($I$25=$L$125,PPMT($I$23,I44,$I$24,-$I$21,0))))) -> 167539.4666 | J47: 169717.4797 | K47: 171923.8069 | L47: 174158.8164 | M47: 176422.881 | N47: 178716.3785 | O47: 181039.6914 | P47: 183393.2074 | Q47: 185777.3191 | R47: 188192.4242 | S47: 190638.9258 | T47: 193117.2318 | U47: 195627.7558 | V47: 198170.9166 | W47: 200747.1385 | X47: 203356.8513 | Y47: 206000.4904 | Z47: 208678.4968 | AA47: 211391.3172 | AB47: 0 | AC47: 0 | AD47: 0 | AE47: 0 | AF47: 0 | AG47: 0 | AH47: 0 | AI47: 0 | AJ47: 0 | AK47: 0 | AL47: 0 | AM47: 0 | AN47: 0 | AO47: 0 | AP47: 0 | AQ47: 0 | AR47: 0 | AS47: 0 | AT47: 0 | AU47: 0 | AV47: 0 | AW47: 0 | AX47: 0 | AY47: 0 | AZ47: 0 | BA47: 0 | BB47: 0 | BC47: 0 | BD47: 0 | BE47: 0 | BF47: =SUM(G47:BE47) -> 3750000
D48: 資金調達費 | E48: 起債金利 | F48: =I23 -> 0.013 | H48: =IF(H44>$I$6,0,IF($I$25=$K$125,H126*$F$48,IF($I$25=$M$125,H126*$F$48,IF($I$25=$L$125,IPMT($I$23,H44,$I$24,-$I$21))))) -> 48750 | I48: =IF(I44>$I$6,0,IF($I$25=$K$125,I126*$F$48,IF($I$25=$M$125,I126*$F$48,IF($I$25=$L$125,IPMT($I$23,I44,$I$24,-$I$21))))) -> 46599.93774 | J48: 44421.92468 | K48: 42215.59744 | L48: 39980.58795 | M48: 37716.52334 | N48: 35423.02588 | O48: 33099.71296 | P48: 30746.19698 | Q48: 28362.08528 | R48: 25946.98013 | S48: 23500.47862 | T48: 21022.17258 | U48: 18511.64857 | V48: 15968.48774 | W48: 13392.26583 | X48: 10782.55303 | Y48: 8138.913958 | Z48: 5460.907582 | AA48: 2748.087124 | AB48: 0 | AC48: 0 | AD48: 0 | AE48: 0 | AF48: 0 | AG48: 0 | AH48: 0 | AI48: 0 | AJ48: 0 | AK48: 0 | AL48: 0 | AM48: 0 | AN48: 0 | AO48: 0 | AP48: 0 | AQ48: 0 | AR48: 0 | AS48: 0 | AT48: 0 | AU48: 0 | AV48: 0 | AW48: 0 | AX48: 0 | AY48: 0 | AZ48: 0 | BA48: 0 | BB48: 0 | BC48: 0 | BD48: 0 | BE48: 0 | BF48: =SUM(G48:BE48) -> 532788.0874
D49: 運営費 | F49: =IF(K4=M124,0,I9) -> 50000 | H49: =IF(H44>$I$6,0,$F$49) -> 50000 | I49: =IF(I44>$I$6,0,$F$49) -> 50000 | J49: 50000 | K49: 50000 | L49: 50000 | M49: 50000 | N49: 50000 | O49: 50000 | P49: 50000 | Q49: 50000 | R49: 50000 | S49: 50000 | T49: 50000 | U49: 50000 | V49: 50000 | W49: 50000 | X49: 50000 | Y49: 50000 | Z49: 50000 | AA49: 50000 | AB49: 0 | AC49: 0 | AD49: 0 | AE49: 0 | AF49: 0 | AG49: 0 | AH49: 0 | AI49: 0 | AJ49: 0 | AK49: 0 | AL49: 0 | AM49: 0 | AN49: =IF(AN44>$I$6,0,$F$49) -> 0 | AO49: 0 | AP49: 0 | AQ49: 0 | AR49: 0 | AS49: 0 | AT49: 0 | AU49: 0 | AV49: 0 | AW49: 0 | AX49: 0 | AY49: 0 | AZ49: 0 | BA49: 0 | BB49: 0 | BC49: 0 | BD49: 0 | BE49: 0 | BF49: 1000000
D50: 調査等費用 | G50: =F50 -> 0 | BF50: 0
C51: 支出合計（A） | G51: =SUM(G45:G50) -> 1250000 | H51: =SUM(H45:H50) -> 264139.4044 | I51: 264139.4044 | J51: 264139.4044 | K51: 264139.4044 | L51: 264139.4044 | M51: 264139.4044 | N51: 264139.4044 | O51: 264139.4044 | P51: 264139.4044 | Q51: 264139.4044 | R51: 264139.4044 | S51: 264139.4044 | T51: 264139.4044 | U51: 264139.4044 | V51: 264139.4044 | W51: 264139.4044 | X51: 264139.4044 | Y51: 264139.4044 | Z51: 264139.4044 | AA51: 264139.4044 | AB51: 0 | AC51: 0 | AD51: 0 | AE51: 0 | AF51: 0 | AG51: 0 | AH51: 0 | AI51: 0 | AJ51: 0 | AK51: 0 | AL51: 0 | AM51: 0 | AN51: 0 | AO51: 0 | AP51: 0 | AQ51: 0 | AR51: 0 | AS51: 0 | AT51: 0 | AU51: 0 | AV51: 0 | AW51: 0 | AX51: 0 | AY51: 0 | AZ51: 0 | BA51: 0 | BB51: 0 | BC51: 0 | BD51: 0 | BE51: 0 | BF51: 6532788.087
D52: 補助金・交付金分収入 | F52: =F45 -> 0 | G52: =F52 -> 0 | BF52: =SUM(G52:BE52) -> 0
D53: 利用料金収入 | F53: =IF(K4=M124,0,(I10)) -> 10000 | H53: =IF(H44>$I$6,0,$F$53) -> 10000 | I53: =IF(I44>$I$6,0,$F$53) -> 10000 | J53: 10000 | K53: 10000 | L53: 10000 | M53: 10000 | N53: 10000 | O53: 10000 | P53: 10000 | Q53: 10000 | R53: 10000 | S53: 10000 | T53: 10000 | U53: 10000 | V53: 10000 | W53: 10000 | X53: 10000 | Y53: 10000 | Z53: 10000 | AA53: 10000 | AB53: 0 | AC53: 0 | AD53: 0 | AE53: 0 | AF53: 0 | AG53: 0 | AH53: 0 | AI53: 0 | AJ53: 0 | AK53: 0 | AL53: 0 | AM53: 0 | AN53: =IF(AN44>$I$6,0,$F$53) -> 0 | AO53: 0 | AP53: 0 | AQ53: 0 | AR53: 0 | AS53: 0 | AT53: 0 | AU53: 0 | AV53: 0 | AW53: 0 | AX53: 0 | AY53: 0 | AZ53: 0 | BA53: 0 | BB53: 0 | BC53: 0 | BD53: 0 | BE53: 0 | BF53: 200000
C54: 収入合計（B) | G54: =SUM(G52:G53) -> 0 | H54: =SUM(H52:H53) -> 10000 | I54: 10000 | J54: 10000 | K54: 10000 | L54: 10000 | M54: 10000 | N54: 10000 | O54: 10000 | P54: 10000 | Q54: 10000 | R54: 10000 | S54: 10000 | T54: 10000 | U54: 10000 | V54: 10000 | W54: 10000 | X54: 10000 | Y54: 10000 | Z54: 10000 | AA54: 10000 | AB54: 0 | AC54: 0 | AD54: 0 | AE54: 0 | AF54: 0 | AG54: 0 | AH54: 0 | AI54: 0 | AJ54: 0 | AK54: 0 | AL54: 0 | AM54: 0 | AN54: 0 | AO54: 0 | AP54: 0 | AQ54: 0 | AR54: 0 | AS54: 0 | AT54: 0 | AU54: 0 | AV54: 0 | AW54: 0 | AX54: 0 | AY54: 0 | AZ54: 0 | BA54: 0 | BB54: 0 | BC54: 0 | BD54: 0 | BE54: 0 | BF54: 200000
C55: 純支出（C）＝（A）-（B） | G55: =G51-G54 -> 1250000 | H55: 254139.4044 | I55: 254139.4044 | J55: 254139.4044 | K55: 254139.4044 | L55: 254139.4044 | M55: 254139.4044 | N55: 254139.4044 | O55: 254139.4044 | P55: 254139.4044 | Q55: 254139.4044 | R55: 254139.4044 | S55: 254139.4044 | T55: 254139.4044 | U55: 254139.4044 | V55: 254139.4044 | W55: 254139.4044 | X55: 254139.4044 | Y55: 254139.4044 | Z55: 254139.4044 | AA55: 254139.4044 | AB55: 0 | AC55: 0 | AD55: 0 | AE55: 0 | AF55: 0 | AG55: 0 | AH55: 0 | AI55: 0 | AJ55: 0 | AK55: 0 | AL55: 0 | AM55: =AM51-AM54 -> 0 | AN55: 0 | AO55: 0 | AP55: 0 | AQ55: 0 | AR55: 0 | AS55: 0 | AT55: 0 | AU55: 0 | AV55: 0 | AW55: 0 | AX55: 0 | AY55: 0 | AZ55: 0 | BA55: 0 | BB55: 0 | BC55: 0 | BD55: 0 | BE55: 0 | BF55: 6332788.087
C56: 現在価値での収支 | G56: =G55*G41 -> 1250000 | H56: 247699.2245 | I56: 241422.2461 | J56: 235304.3335 | K56: 229341.4556 | L56: 223529.6838 | M56: 217865.1889 | N56: 212344.2387 | O56: 206963.1956 | P56: 201718.5143 | Q56: 196606.739 | R56: 191624.502 | S56: 186768.5205 | T56: 182035.595 | U56: 177422.6072 | V56: 172926.5177 | W56: 168544.3643 | X56: 164273.2595 | Y56: 160110.3894 | Z56: 156053.0111 | AA56: 152098.4514 | AB56: 0 | AC56: 0 | AD56: 0 | AE56: 0 | AF56: 0 | AG56: 0 | AH56: 0 | AI56: 0 | AJ56: 0 | AK56: 0 | AL56: 0 | AM56: =AM55*AM41 -> 0 | AN56: 0 | AO56: 0 | AP56: 0 | AQ56: 0 | AR56: 0 | AS56: 0 | AT56: 0 | AU56: 0 | AV56: 0 | AW56: 0 | AX56: 0 | AY56: 0 | AZ56: 0 | BA56: 0 | BB56: 0 | BC56: 0 | BD56: 0 | BE56: 0 | BF56: =SUM(G56:BE56) -> 5174652.038
C58: ■採用手法での公共の収支 | G58: 整備期間 | H58: 維持管理・運営期間
F59: 仮定した内容 | G59: -1 | H59: 1 | I59: 2 | J59: 3 | K59: 4 | L59: 5 | M59: 6 | N59: 7 | O59: 8 | P59: 9 | Q59: 10 | R59: 11 | S59: 12 | T59: 13 | U59: 14 | V59: 15 | W59: 16 | X59: 17 | Y59: 18 | Z59: 19 | AA59: 20 | AB59: 21 | AC59: 22 | AD59: 23 | AE59: 24 | AF59: 25 | AG59: 26 | AH59: 27 | AI59: 28 | AJ59: 29 | AK59: 30 | AL59: 31 | AM59: 32 | AN59: 33 | AO59: 34 | AP59: 35 | AQ59: 36 | AR59: 37 | AS59: 38 | AT59: 39 | AU59: 40 | AV59: 41 | AW59: 42 | AX59: 43 | AY59: 44 | AZ59: 45 | BA59: 46 | BB59: 47 | BC59: 48 | BD59: 49 | BE59: 50 | BF59: 合計
D60: 整備費 | E60: 補助金・交付金分支払 | F60: =K20 -> 0 | G60: =F60 -> 0 | BF60: =SUM(G60:BE60) -> 0
E61: 一般財源 | F61: =K22 -> 0 | G61: =F61 -> 0 | BF61: =SUM(G61:BE61) -> 0
E62: 起債元金・償還元金 | F62: =K21 -> 0 | H62: =IF(H44>$K$6,0,IF($K$25=$K$125,IF($K$24=H44,$F$62,0),IF($K$25=$M$125,$F$62/$K$24,IF($K$25=$L$125,PPMT($K$23,H44,$K$24,-$K$21,0))))) -> 0 | I62: =IF(I44>$K$6,0,IF($K$25=$K$125,IF($K$24=I44,$F$62,0),IF($K$25=$M$125,$F$62/$K$24,IF($K$25=$L$125,PPMT($K$23,I44,$K$24,-$K$21,0))))) -> 0 | J62: 0 | K62: 0 | L62: 0 | M62: 0 | N62: 0 | O62: 0 | P62: 0 | Q62: 0 | R62: 0 | S62: 0 | T62: 0 | U62: 0 | V62: 0 | W62: 0 | X62: 0 | Y62: 0 | Z62: 0 | AA62: 0 | AB62: 0 | AC62: 0 | AD62: 0 | AE62: 0 | AF62: 0 | AG62: 0 | AH62: 0 | AI62: 0 | AJ62: 0 | AK62: 0 | AL62: 0 | AM62: 0 | AN62: 0 | AO62: 0 | AP62: 0 | AQ62: 0 | AR62: 0 | AS62: 0 | AT62: 0 | AU62: 0 | AV62: 0 | AW62: 0 | AX62: 0 | AY62: 0 | AZ62: 0 | BA62: 0 | BB62: 0 | BC62: 0 | BD62: 0 | BE62: 0 | BF62: =SUM(G62:BE62) -> 0
D63: 資金調達費 | E63: 起債金利 | F63: =K23 -> 0.013 | H63: =IF(H44>$K$6,0,IF($K$25=$K$125,H128*$F$63,IF($K$25=$M$125,H128*$F$63,IF($K$25=$L$125,IPMT($K$23,H44,$K$24,-$K$21,0,))))) -> 0 | I63: =IF(I44>$K$6,0,IF($K$25=$K$125,I128*$F$63,IF($K$25=$M$125,I128*$F$63,IF($K$25=$L$125,IPMT($K$23,I44,$K$24,-$K$21,0,))))) -> 0 | J63: 0 | K63: 0 | L63: 0 | M63: 0 | N63: 0 | O63: 0 | P63: 0 | Q63: 0 | R63: 0 | S63: 0 | T63: 0 | U63: 0 | V63: 0 | W63: 0 | X63: 0 | Y63: 0 | Z63: 0 | AA63: 0 | AB63: 0 | AC63: 0 | AD63: 0 | AE63: 0 | AF63: 0 | AG63: 0 | AH63: 0 | AI63: 0 | AJ63: 0 | AK63: 0 | AL63: 0 | AM63: 0 | AN63: 0 | AO63: 0 | AP63: 0 | AQ63: 0 | AR63: 0 | AS63: 0 | AT63: 0 | AU63: 0 | AV63: 0 | AW63: 0 | AX63: 0 | AY63: 0 | AZ63: 0 | BA63: 0 | BB63: 0 | BC63: 0 | BD63: 0 | BE63: 0 | BF63: =SUM(G63:BE63) -> 0
D64: 整備費の対価 | E64: 割賦元金 | F64: =F79 -> 4500000 | H64: =IF(H59>$K$6,0,H79) -> 188922.2734 | I64: 192322.8744 | J64: 195784.6861 | K64: 199308.8105 | L64: 202896.369 | M64: 206548.5037 | N64: 210266.3768 | O64: 214051.1715 | P64: 217904.0926 | Q64: 221826.3663 | R64: 225819.2409 | S64: 229883.9872 | T64: 234021.899 | U64: 238234.2932 | V64: 242522.5104 | W64: 246887.9156 | X64: 251331.8981 | Y64: 255855.8723 | Z64: 260461.278 | AA64: 265149.581 | AB64: 0 | AC64: 0 | AD64: 0 | AE64: 0 | AF64: 0 | AG64: 0 | AH64: 0 | AI64: 0 | AJ64: 0 | AK64: 0 | AL64: 0 | AM64: 0 | AN64: =IF(AN59>$K$6,0,AN79) -> 0 | AO64: 0 | AP64: 0 | AQ64: 0 | AR64: 0 | AS64: 0 | AT64: 0 | AU64: 0 | AV64: 0 | AW64: 0 | AX64: 0 | AY64: 0 | AZ64: 0 | BA64: 0 | BB64: 0 | BC64: 0 | BD64: 0 | BE64: 0 | BF64: =SUM(G64:BE64) -> 4500000
E65: 割賦金利 | F65: =K32 -> 0.018 | H65: =IF(H59>$K$6,0,H80) -> 81000 | I65: 77599.39908 | J65: 74137.58734 | K65: 70613.46299 | L65: 67025.9044 | M65: 63373.76976 | N65: 59655.89669 | O65: 55871.10191 | P65: 52018.18082 | Q65: 48095.90716 | R65: 44103.03256 | S65: 40038.28623 | T65: 35900.37446 | U65: 31687.98028 | V65: 27399.763 | W65: 23034.35781 | X65: 18590.37533 | Y65: 14066.40116 | Z65: 9460.995461 | AA65: 4772.692458 | AB65: 0 | AC65: 0 | AD65: 0 | AE65: 0 | AF65: 0 | AG65: 0 | AH65: 0 | AI65: 0 | AJ65: 0 | AK65: 0 | AL65: 0 | AM65: 0 | AN65: =IF(AN59>$K$6,0,AN80) -> 0 | AO65: 0 | AP65: 0 | AQ65: 0 | AR65: 0 | AS65: 0 | AT65: 0 | AU65: 0 | AV65: 0 | AW65: 0 | AX65: 0 | AY65: 0 | AZ65: 0 | BA65: 0 | BB65: 0 | BC65: 0 | BD65: 0 | BE65: 0 | BF65: =SUM(G65:BE65) -> 898445.4689
D66: 運営費の対価 | F66: =IF(K4=M124,0,K9) -> 45000 | H66: =IF(H59>$K$6,0,$F$66) -> 45000 | I66: =IF(I59>$K$6,0,$F$66) -> 45000 | J66: 45000 | K66: 45000 | L66: 45000 | M66: 45000 | N66: 45000 | O66: 45000 | P66: 45000 | Q66: 45000 | R66: 45000 | S66: 45000 | T66: 45000 | U66: 45000 | V66: 45000 | W66: 45000 | X66: 45000 | Y66: 45000 | Z66: 45000 | AA66: 45000 | AB66: 0 | AC66: 0 | AD66: 0 | AE66: 0 | AF66: 0 | AG66: 0 | AH66: 0 | AI66: 0 | AJ66: 0 | AK66: 0 | AL66: 0 | AM66: 0 | AN66: 0 | AO66: 0 | AP66: 0 | AQ66: 0 | AR66: 0 | AS66: 0 | AT66: 0 | AU66: 0 | AV66: 0 | AW66: 0 | AX66: 0 | AY66: 0 | AZ66: 0 | BA66: 0 | BB66: 0 | BC66: 0 | BD66: 0 | BE66: 0 | BF66: 900000
D67: 採用手法における対価の調整 | F67: =IF(K4=M124,0,IF(K4=N124,0,K37))+IF(K4=N124,-K10,0) -> -10647.67756 | H67: =IF(H59>$K$6,0,$F$67) -> -10647.67756 | I67: -10647.67756 | J67: -10647.67756 | K67: -10647.67756 | L67: -10647.67756 | M67: -10647.67756 | N67: -10647.67756 | O67: -10647.67756 | P67: -10647.67756 | Q67: -10647.67756 | R67: -10647.67756 | S67: -10647.67756 | T67: -10647.67756 | U67: -10647.67756 | V67: -10647.67756 | W67: -10647.67756 | X67: -10647.67756 | Y67: -10647.67756 | Z67: -10647.67756 | AA67: -10647.67756 | AB67: 0 | AC67: 0 | AD67: 0 | AE67: 0 | AF67: 0 | AG67: 0 | AH67: 0 | AI67: 0 | AJ67: 0 | AK67: 0 | AL67: 0 | AM67: 0 | AN67: =IF(AN59>$K$6,0,$F$67) -> 0 | AO67: 0 | AP67: 0 | AQ67: 0 | AR67: 0 | AS67: 0 | AT67: 0 | AU67: 0 | AV67: 0 | AW67: 0 | AX67: 0 | AY67: 0 | AZ67: 0 | BA67: 0 | BB67: 0 | BC67: 0 | BD67: 0 | BE67: 0 | BF67: -212953.5512
D68: 調査等費用 | F68: =K35 -> 25000 | G68: =F68 -> 25000 | BF68: 25000
C69: 支出合計（A） | G69: =SUM(G60:G68) -> 25000 | H69: =SUM(H60:H68) -> 304274.5959 | I69: 304274.5959 | J69: 304274.5959 | K69: 304274.5959 | L69: 304274.5959 | M69: 304274.5959 | N69: 304274.5959 | O69: 304274.5959 | P69: 304274.5959 | Q69: 304274.5959 | R69: 304274.5959 | S69: 304274.5959 | T69: 304274.5959 | U69: 304274.5959 | V69: 304274.5959 | W69: 304274.5959 | X69: 304274.5959 | Y69: 304274.5959 | Z69: 304274.5959 | AA69: 304274.5959 | AB69: 0 | AC69: 0 | AD69: 0 | AE69: 0 | AF69: 0 | AG69: 0 | AH69: 0 | AI69: 0 | AJ69: 0 | AK69: 0 | AL69: 0 | AM69: 0 | AN69: 0 | AO69: 0 | AP69: 0 | AQ69: 0 | AR69: 0 | AS69: 0 | AT69: 0 | AU69: 0 | AV69: 0 | AW69: 0 | AX69: 0 | AY69: 0 | AZ69: 0 | BA69: 0 | BB69: 0 | BC69: 0 | BD69: 0 | BE69: 0 | BF69: 6110491.918
D70: 補助金・交付金分収入 | F70: =F60 -> 0 | G70: =F70 -> 0 | BF70: =SUM(G70:BE70) -> 0
C71: 収入合計（B) | G71: =G70 -> 0 | H71: 0 | I71: 0 | J71: 0 | K71: 0 | L71: 0 | M71: 0 | N71: 0 | O71: 0 | P71: 0 | Q71: 0 | R71: 0 | S71: 0 | T71: 0 | U71: 0 | V71: 0 | W71: 0 | X71: 0 | Y71: 0 | Z71: 0 | AA71: 0 | AB71: 0 | AC71: 0 | AD71: 0 | AE71: 0 | AF71: 0 | AG71: 0 | AH71: 0 | AI71: 0 | AJ71: 0 | AK71: 0 | AL71: 0 | AM71: =AM70 -> 0 | AN71: 0 | AO71: 0 | AP71: 0 | AQ71: 0 | AR71: 0 | AS71: 0 | AT71: 0 | AU71: 0 | AV71: 0 | AW71: 0 | AX71: 0 | AY71: 0 | AZ71: 0 | BA71: 0 | BB71: 0 | BC71: 0 | BD71: 0 | BE71: 0 | BF71: =SUM(G71:BE71) -> 0
C72: 純支出（C）＝（A）-（B） | G72: =G69-G71 -> 25000 | H72: 304274.5959 | I72: 304274.5959 | J72: 304274.5959 | K72: 304274.5959 | L72: 304274.5959 | M72: 304274.5959 | N72: 304274.5959 | O72: 304274.5959 | P72: 304274.5959 | Q72: 304274.5959 | R72: 304274.5959 | S72: 304274.5959 | T72: 304274.5959 | U72: 304274.5959 | V72: 304274.5959 | W72: 304274.5959 | X72: 304274.5959 | Y72: 304274.5959 | Z72: 304274.5959 | AA72: 304274.5959 | AB72: 0 | AC72: 0 | AD72: 0 | AE72: 0 | AF72: 0 | AG72: 0 | AH72: 0 | AI72: 0 | AJ72: 0 | AK72: 0 | AL72: 0 | AM72: =AM69-AM71 -> 0 | AN72: 0 | AO72: 0 | AP72: 0 | AQ72: 0 | AR72: 0 | AS72: 0 | AT72: 0 | AU72: 0 | AV72: 0 | AW72: 0 | AX72: 0 | AY72: 0 | AZ72: 0 | BA72: 0 | BB72: 0 | BC72: 0 | BD72: 0 | BE72: 0 | BF72: 6110491.918
C73: 現在価値での収支 | G73: =G72*G41 -> 25000 | H73: 296563.9336 | I73: 289048.6682 | J73: 281723.8482 | K73: 274584.6474 | L73: 267626.3619 | M73: 260844.4073 | N73: 254234.3152 | O73: 247791.7302 | P73: 241512.4076 | Q73: 235392.2101 | R73: 229427.1054 | S73: 223613.1631 | T73: 217946.5528 | U73: 212423.5407 | V73: 207040.488 | W73: 201793.848 | X73: 196680.1637 | Y73: 191696.066 | Z73: 186838.2709 | AA73: 182103.5779 | AB73: 0 | AC73: 0 | AD73: 0 | AE73: 0 | AF73: 0 | AG73: 0 | AH73: 0 | AI73: 0 | AJ73: 0 | AK73: 0 | AL73: 0 | AM73: =AM72*AM41 -> 0 | AN73: 0 | AO73: 0 | AP73: 0 | AQ73: 0 | AR73: 0 | AS73: 0 | AT73: 0 | AU73: 0 | AV73: 0 | AW73: 0 | AX73: 0 | AY73: 0 | AZ73: 0 | BA73: 0 | BB73: 0 | BC73: 0 | BD73: 0 | BE73: 0 | BF73: =SUM(G73:BE73) -> 4723885.306
C76: ■採用手法での民間の損益 | F76: =IF(K4=M124,"考慮不要",IF(K4=N124,"考慮不要","")) ->  | G76: 整備期間 | H76: 維持管理・運営期間
F77: 仮定した内容 | G77: -1 | H77: 1 | I77: 2 | J77: 3 | K77: 4 | L77: 5 | M77: 6 | N77: 7 | O77: 8 | P77: 9 | Q77: 10 | R77: 11 | S77: 12 | T77: 13 | U77: 14 | V77: 15 | W77: 16 | X77: 17 | Y77: 18 | Z77: 19 | AA77: 20 | AB77: 21 | AC77: 22 | AD77: 23 | AE77: 24 | AF77: 25 | AG77: 26 | AH77: 27 | AI77: 28 | AJ77: 29 | AK77: 30 | AL77: 31 | AM77: 32 | AN77: 33 | AO77: 34 | AP77: 35 | AQ77: 36 | AR77: 37 | AS77: 38 | AT77: 39 | AU77: 40 | AV77: 41 | AW77: 42 | AX77: 43 | AY77: 44 | AZ77: 45 | BA77: 46 | BB77: 47 | BC77: 48 | BD77: 49 | BE77: 50 | BF77: 合計
D78: 整備費の対価 | E78: 一括受領分 | F78: =IF(K4=M124,0,SUM(F60:F62)) -> 0 | G78: =F78 -> 0 | BF78: =SUM(G78:BE78) -> 0
E79: 割賦元金 | F79: =K8*K17 -> 4500000 | H79: =IF(H77>$K$6,0,PPMT($K$32,H77,$K$33,-$F$79,0)) -> 188922.2734 | I79: 192322.8744 | J79: 195784.6861 | K79: 199308.8105 | L79: 202896.369 | M79: 206548.5037 | N79: 210266.3768 | O79: 214051.1715 | P79: 217904.0926 | Q79: 221826.3663 | R79: 225819.2409 | S79: 229883.9872 | T79: 234021.899 | U79: 238234.2932 | V79: 242522.5104 | W79: 246887.9156 | X79: 251331.8981 | Y79: 255855.8723 | Z79: 260461.278 | AA79: 265149.581 | AB79: 0 | AC79: 0 | AD79: 0 | AE79: 0 | AF79: 0 | AG79: 0 | AH79: 0 | AI79: 0 | AJ79: 0 | AK79: 0 | AL79: 0 | AM79: 0 | AN79: =IF(AN77>$K$6,0,PPMT($K$32,AN77,$K$33,-$F$79,0)) -> 0 | AO79: 0 | AP79: 0 | AQ79: 0 | AR79: 0 | AS79: 0 | AT79: 0 | AU79: 0 | AV79: 0 | AW79: 0 | AX79: 0 | AY79: 0 | AZ79: 0 | BA79: 0 | BB79: 0 | BC79: 0 | BD79: 0 | BE79: 0 | BF79: =SUM(G79:BE79) -> 4500000
E80: 割賦金利 | F80: =F65 -> 0.018 | H80: =IF(H77>$K$6,0,IPMT($K$32,H77,$K$33,-$F$79,0)) -> 81000 | I80: 77599.39908 | J80: 74137.58734 | K80: 70613.46299 | L80: 67025.9044 | M80: 63373.76976 | N80: 59655.89669 | O80: 55871.10191 | P80: 52018.18082 | Q80: 48095.90716 | R80: 44103.03256 | S80: 40038.28623 | T80: 35900.37446 | U80: 31687.98028 | V80: 27399.763 | W80: 23034.35781 | X80: 18590.37533 | Y80: 14066.40116 | Z80: 9460.995461 | AA80: 4772.692458 | AB80: 0 | AC80: 0 | AD80: 0 | AE80: 0 | AF80: 0 | AG80: 0 | AH80: 0 | AI80: 0 | AJ80: 0 | AK80: 0 | AL80: 0 | AM80: 0 | AN80: =IF(AN77>$K$6,0,IPMT($K$32,AN77,$K$33,-$F$79,0)) -> 0 | AO80: 0 | AP80: 0 | AQ80: 0 | AR80: 0 | AS80: 0 | AT80: 0 | AU80: 0 | AV80: 0 | AW80: 0 | AX80: 0 | AY80: 0 | AZ80: 0 | BA80: 0 | BB80: 0 | BC80: 0 | BD80: 0 | BE80: 0 | BF80: =SUM(G80:BE80) -> 898445.4689
D81: 運営費の対価 | F81: =IF(K4=M124,0,IF(K4=N124,0,K9)) -> 45000 | H81: =IF(H77>$K$6,0,$F$81) -> 45000 | I81: 45000 | J81: 45000 | K81: 45000 | L81: 45000 | M81: 45000 | N81: 45000 | O81: 45000 | P81: 45000 | Q81: 45000 | R81: 45000 | S81: 45000 | T81: 45000 | U81: 45000 | V81: 45000 | W81: 45000 | X81: 45000 | Y81: 45000 | Z81: 45000 | AA81: 45000 | AB81: 0 | AC81: 0 | AD81: 0 | AE81: 0 | AF81: 0 | AG81: 0 | AH81: 0 | AI81: 0 | AJ81: 0 | AK81: 0 | AL81: 0 | AM81: 0 | AN81: =IF(AN77>$K$6,0,$F$81) -> 0 | AO81: 0 | AP81: 0 | AQ81: 0 | AR81: 0 | AS81: 0 | AT81: 0 | AU81: 0 | AV81: 0 | AW81: 0 | AX81: 0 | AY81: 0 | AZ81: 0 | BA81: 0 | BB81: 0 | BC81: 0 | BD81: 0 | BE81: 0 | BF81: 900000
D82: 採用手法における対価の調整 | F82: =IF(K4=M124,0,IF(K4=N124,0,K37)) -> -10647.67756 | H82: =IF(H77>$K$6,0,$F$82) -> -10647.67756 | I82: -10647.67756 | J82: -10647.67756 | K82: -10647.67756 | L82: -10647.67756 | M82: -10647.67756 | N82: -10647.67756 | O82: -10647.67756 | P82: -10647.67756 | Q82: -10647.67756 | R82: -10647.67756 | S82: -10647.67756 | T82: -10647.67756 | U82: -10647.67756 | V82: -10647.67756 | W82: -10647.67756 | X82: -10647.67756 | Y82: -10647.67756 | Z82: -10647.67756 | AA82: -10647.67756 | AB82: 0 | AC82: 0 | AD82: 0 | AE82: 0 | AF82: 0 | AG82: 0 | AH82: 0 | AI82: 0 | AJ82: 0 | AK82: 0 | AL82: 0 | AM82: 0 | AN82: =IF(AN77>$K$6,0,$F$82) -> 0 | AO82: 0 | AP82: 0 | AQ82: 0 | AR82: 0 | AS82: 0 | AT82: 0 | AU82: 0 | AV82: 0 | AW82: 0 | AX82: 0 | AY82: 0 | AZ82: 0 | BA82: 0 | BB82: 0 | BC82: 0 | BD82: 0 | BE82: 0 | BF82: -212953.5512
D83: 利用料金収入 | F83: =IF(K4=M124,0,IF(K4=N124,0,K10)) -> 11000 | H83: =IF(H77>$K$6,0,$F$83) -> 11000 | I83: 11000 | J83: 11000 | K83: 11000 | L83: 11000 | M83: 11000 | N83: 11000 | O83: 11000 | P83: 11000 | Q83: 11000 | R83: 11000 | S83: 11000 | T83: 11000 | U83: 11000 | V83: 11000 | W83: 11000 | X83: 11000 | Y83: 11000 | Z83: 11000 | AA83: 11000 | AB83: 0 | AC83: 0 | AD83: 0 | AE83: 0 | AF83: 0 | AG83: 0 | AH83: 0 | AI83: 0 | AJ83: 0 | AK83: 0 | AL83: 0 | AM83: 0 | AN83: =IF(AN77>$K$6,0,$F$83) -> 0 | AO83: 0 | AP83: 0 | AQ83: 0 | AR83: 0 | AS83: 0 | AT83: 0 | AU83: 0 | AV83: 0 | AW83: 0 | AX83: 0 | AY83: 0 | AZ83: 0 | BA83: 0 | BB83: 0 | BC83: 0 | BD83: 0 | BE83: 0 | BF83: 220000
C84: 収入合計（A) | G84: =SUM(G78:G83) -> 0 | H84: =SUM(H78:H83) -> 315274.5959 | I84: 315274.5959 | J84: 315274.5959 | K84: 315274.5959 | L84: 315274.5959 | M84: 315274.5959 | N84: 315274.5959 | O84: 315274.5959 | P84: 315274.5959 | Q84: 315274.5959 | R84: 315274.5959 | S84: 315274.5959 | T84: 315274.5959 | U84: 315274.5959 | V84: 315274.5959 | W84: 315274.5959 | X84: 315274.5959 | Y84: 315274.5959 | Z84: 315274.5959 | AA84: 315274.5959 | AB84: 0 | AC84: 0 | AD84: 0 | AE84: 0 | AF84: 0 | AG84: 0 | AH84: 0 | AI84: 0 | AJ84: 0 | AK84: 0 | AL84: 0 | AM84: 0 | AN84: 0 | AO84: 0 | AP84: 0 | AQ84: 0 | AR84: 0 | AS84: 0 | AT84: 0 | AU84: 0 | AV84: 0 | AW84: 0 | AX84: 0 | AY84: 0 | AZ84: 0 | BA84: 0 | BB84: 0 | BC84: 0 | BD84: 0 | BE84: 0 | BF84: 6305491.918
D85: 整備費 | F85: =IF(K4=M124,0,K8) -> 4500000 | G85: =IF(K4=M124,0,SUM(K20:K22)) -> 0 | H85: =IF(H77>$K$6,0,PPMT($K$32,H77,$K$33,-($F$85-$G$85),0)) -> 188922.2734 | I85: 192322.8744 | J85: 195784.6861 | K85: 199308.8105 | L85: 202896.369 | M85: 206548.5037 | N85: 210266.3768 | O85: 214051.1715 | P85: 217904.0926 | Q85: 221826.3663 | R85: 225819.2409 | S85: 229883.9872 | T85: 234021.899 | U85: 238234.2932 | V85: 242522.5104 | W85: 246887.9156 | X85: 251331.8981 | Y85: 255855.8723 | Z85: 260461.278 | AA85: 265149.581 | AB85: 0 | AC85: 0 | AD85: 0 | AE85: 0 | AF85: 0 | AG85: 0 | AH85: 0 | AI85: 0 | AJ85: 0 | AK85: 0 | AL85: 0 | AM85: 0 | AN85: =IF(AN77>$K$6,0,PPMT($K$32,AN77,$K$33,-($F$85-$G$85),0)) -> 0 | AO85: 0 | AP85: 0 | AQ85: 0 | AR85: 0 | AS85: 0 | AT85: 0 | AU85: 0 | AV85: 0 | AW85: 0 | AX85: 0 | AY85: 0 | AZ85: 0 | BA85: 0 | BB85: 0 | BC85: 0 | BD85: 0 | BE85: 0 | BF85: 4500000
D86: 運営費 | F86: =IF(K4=M124,0,IF(K4=N124,0,K9)) -> 45000 | H86: =IF(H77>$K$6,0,$F$86) -> 45000 | I86: 45000 | J86: 45000 | K86: 45000 | L86: 45000 | M86: 45000 | N86: 45000 | O86: 45000 | P86: 45000 | Q86: 45000 | R86: 45000 | S86: 45000 | T86: 45000 | U86: 45000 | V86: 45000 | W86: 45000 | X86: 45000 | Y86: 45000 | Z86: 45000 | AA86: 45000 | AB86: 0 | AC86: 0 | AD86: 0 | AE86: 0 | AF86: 0 | AG86: 0 | AH86: 0 | AI86: 0 | AJ86: 0 | AK86: 0 | AL86: 0 | AM86: 0 | AN86: =IF(AN77>$K$6,0,$F$86) -> 0 | AO86: 0 | AP86: 0 | AQ86: 0 | AR86: 0 | AS86: 0 | AT86: 0 | AU86: 0 | AV86: 0 | AW86: 0 | AX86: 0 | AY86: 0 | AZ86: 0 | BA86: 0 | BB86: 0 | BC86: 0 | BD86: 0 | BE86: 0 | BF86: 900000
D87: 借入金利 | H87: =IF(H77>$K$6,0,IPMT($K$29,H77,$K$30,-$K$28,0)) -> 80820 | I87: =IF(I77>$K$6,0,IPMT($K$29,I77,$K$30,-$K$28,0)) -> 77426.95597 | J87: 73972.83715 | K87: 70456.54418 | L87: 66876.95795 | M87: 63232.93916 | N87: 59523.32803 | O87: 55746.94391 | P87: 51902.58487 | Q87: 47989.02736 | R87: 44005.02582 | S87: 39949.31226 | T87: 35820.59585 | U87: 31617.56254 | V87: 27338.87464 | W87: 22983.17035 | X87: 18549.06338 | Y87: 14035.14249 | Z87: 9439.971027 | AA87: 4762.086475 | AB87: 0 | AC87: 0 | AD87: 0 | AE87: 0 | AF87: 0 | AG87: 0 | AH87: 0 | AI87: 0 | AJ87: 0 | AK87: 0 | AL87: 0 | AM87: 0 | AN87: =IF(AN77>$K$6,0,IPMT($K$29,AN77,$K$30,-$K$28,0)) -> 0 | AO87: 0 | AP87: 0 | AQ87: 0 | AR87: 0 | AS87: 0 | AT87: 0 | AU87: 0 | AV87: 0 | AW87: 0 | AX87: 0 | AY87: 0 | AZ87: 0 | BA87: 0 | BB87: 0 | BC87: 0 | BD87: 0 | BE87: 0 | BF87: 896448.9234
C88: 費用合計（B） | G88: =SUM(G85:G87) -> 0 | H88: 314742.2734 | I88: 314749.8303 | J88: 314757.5233 | K88: 314765.3546 | L88: 314773.327 | M88: 314781.4428 | N88: 314789.7048 | O88: 314798.1154 | P88: 314806.6775 | Q88: 314815.3937 | R88: 314824.2667 | S88: 314833.2995 | T88: 314842.4948 | U88: 314851.8557 | V88: 314861.3851 | W88: 314871.086 | X88: 314880.9615 | Y88: 314891.0148 | Z88: 314901.249 | AA88: 314911.6675 | AB88: =SUM(AB85:AB87) -> 0 | AC88: 0 | AD88: 0 | AE88: 0 | AF88: 0 | AG88: 0 | AH88: 0 | AI88: 0 | AJ88: 0 | AK88: 0 | AL88: 0 | AM88: 0 | AN88: 0 | AO88: 0 | AP88: 0 | AQ88: 0 | AR88: 0 | AS88: 0 | AT88: 0 | AU88: 0 | AV88: 0 | AW88: 0 | AX88: 0 | AY88: 0 | AZ88: 0 | BA88: 0 | BB88: 0 | BC88: 0 | BD88: 0 | BE88: 0 | BF88: 6296448.923
C89: 単年度損益（C）＝（A）-（B） | G89: =G84-G88 -> 0 | H89: =H84-H88 -> 532.3224378 | I89: =I84-I88 -> 524.7655469 | J89: 517.0726319 | K89: 509.2412445 | L89: 501.268892 | M89: 493.1530373 | N89: 484.8910971 | O89: 476.4804421 | P89: 467.9183952 | Q89: 459.2022315 | R89: 450.3291768 | S89: 441.2964072 | T89: 432.1010477 | U89: 422.7401718 | V89: 413.2108 | W89: 403.5098996 | X89: 393.634383 | Y89: 383.5811071 | Z89: 373.3468722 | AA89: 362.9284211 | AB89: 0 | AC89: 0 | AD89: 0 | AE89: 0 | AF89: 0 | AG89: 0 | AH89: 0 | AI89: 0 | AJ89: 0 | AK89: 0 | AL89: 0 | AM89: 0 | AN89: 0 | AO89: 0 | AP89: 0 | AQ89: 0 | AR89: 0 | AS89: 0 | AT89: 0 | AU89: 0 | AV89: 0 | AW89: 0 | AX89: 0 | AY89: 0 | AZ89: 0 | BA89: 0 | BB89: 0 | BC89: 0 | BD89: 0 | BE89: 0 | BF89: 9042.994243
C90: 法人税等 | G90: =G89*$K$34 -> 0 | H90: =H89*$K$34 -> 170.9287348 | I90: =I89*$K$34 -> 168.5022171 | J90: 166.0320221 | K90: 163.5173636 | L90: 160.9574412 | M90: 158.3514403 | N90: 155.6985313 | O90: 152.9978699 | P90: 150.2485967 | Q90: 147.4498365 | R90: 144.6006987 | S90: 141.7002764 | T90: 138.7476464 | U90: 135.7418692 | V90: 132.6819879 | W90: 129.5670288 | X90: 126.3960004 | Y90: 123.1678935 | Z90: 119.8816807 | AA90: 116.536316 | AB90: 0 | AC90: 0 | AD90: 0 | AE90: 0 | AF90: 0 | AG90: 0 | AH90: 0 | AI90: 0 | AJ90: 0 | AK90: 0 | AL90: 0 | AM90: 0 | AN90: 0 | AO90: 0 | AP90: 0 | AQ90: 0 | AR90: 0 | AS90: 0 | AT90: 0 | AU90: 0 | AV90: 0 | AW90: 0 | AX90: 0 | AY90: 0 | AZ90: 0 | BA90: 0 | BB90: 0 | BC90: 0 | BD90: 0 | BE90: 0 | BF90: 2903.705451
C91: 税引後当期損益 | G91: =G89-G90 -> 0 | H91: =H89-H90 -> 361.393703 | I91: =I89-I90 -> 356.2633298 | J91: 351.0406098 | K91: 345.7238809 | L91: 340.3114508 | M91: 334.801597 | N91: 329.1925658 | O91: 323.4825721 | P91: 317.6697985 | Q91: 311.752395 | R91: 305.7284782 | S91: 299.5961309 | T91: 293.3534013 | U91: 286.9983026 | V91: 280.5288121 | W91: 273.9428708 | X91: 267.2383826 | Y91: 260.4132136 | Z91: 253.4651915 | AA91: 246.3921051 | AB91: 0 | AC91: 0 | AD91: 0 | AE91: 0 | AF91: 0 | AG91: 0 | AH91: 0 | AI91: 0 | AJ91: 0 | AK91: 0 | AL91: 0 | AM91: 0 | AN91: 0 | AO91: 0 | AP91: 0 | AQ91: 0 | AR91: 0 | AS91: 0 | AT91: 0 | AU91: 0 | AV91: 0 | AW91: 0 | AX91: 0 | AY91: 0 | AZ91: 0 | BA91: 0 | BB91: 0 | BC91: 0 | BD91: 0 | BE91: 0 | BF91: 6139.288791
C92: 税引後当期損益+割賦原価-借入金元本償還 | H92: =IF(H77>$K$6,0,H91+H79-H111) -> 781.2209774 | I92: =IF(I77>$K$6,0,I91+I79-I111) -> 783.647495 | J92: 786.11769 | K92: 788.6323485 | L92: 791.1922709 | M92: 793.7982719 | N92: 796.4511808 | O92: 799.1518422 | P92: 801.9011154 | Q92: 804.6998756 | R92: 807.5490135 | S92: 810.4494358 | T92: 813.4020657 | U92: 816.407843 | V92: 819.4677242 | W92: 822.5826834 | X92: 825.7537118 | Y92: 828.9818187 | Z92: 832.2680315 | AA92: 835.6133961 | AB92: 0 | AC92: 0 | AD92: 0 | AE92: 0 | AF92: 0 | AG92: 0 | AH92: 0 | AI92: 0 | AJ92: 0 | AK92: 0 | AL92: 0 | AM92: 0 | AN92: 0 | AO92: 0 | AP92: 0 | AQ92: 0 | AR92: 0 | AS92: 0 | AT92: 0 | AU92: 0 | AV92: 0 | AW92: 0 | AX92: 0 | AY92: 0 | AZ92: 0 | BA92: 0 | BB92: 0 | BC92: 0 | BD92: 0 | BE92: 0
C93: EIRR(※1） | F93: =IF(K4=M124,"考慮不要",IF(K4=N124,"考慮不要",IRR(G93:BE93))) -> 0.05 | G93: =IF(K4=M124,0,IF(K4=N124,0,-K27)) -> -10000 | H93: =H92 -> 781.2209774 | I93: =I92 -> 783.647495 | J93: 786.11769 | K93: 788.6323485 | L93: 791.1922709 | M93: 793.7982719 | N93: 796.4511808 | O93: 799.1518422 | P93: 801.9011154 | Q93: 804.6998756 | R93: 807.5490135 | S93: 810.4494358 | T93: 813.4020657 | U93: 816.407843 | V93: 819.4677242 | W93: 822.5826834 | X93: 825.7537118 | Y93: 828.9818187 | Z93: 832.2680315 | AA93: 835.6133961 | AB93: 0 | AC93: 0 | AD93: 0 | AE93: 0 | AF93: 0 | AG93: 0 | AH93: 0 | AI93: 0 | AJ93: 0 | AK93: 0 | AL93: 0 | AM93: 0 | AN93: 0 | AO93: 0 | AP93: 0 | AQ93: 0 | AR93: 0 | AS93: 0 | AT93: 0 | AU93: 0 | AV93: 0 | AW93: 0 | AX93: 0 | AY93: 0 | AZ93: 0 | BA93: 0 | BB93: 0 | BC93: 0 | BD93: 0 | BE93: 0
C94: 税引後当期損益+割賦原価+支払利息 | H94: =H91+H64+H87 -> 270103.6671 | I94: 270106.0937 | J94: 270108.5639 | K94: 270111.0785 | L94: 270113.6384 | M94: 270116.2444 | N94: 270118.8974 | O94: 270121.598 | P94: 270124.3473 | Q94: 270127.146 | R94: 270129.9952 | S94: 270132.8956 | T94: 270135.8482 | U94: 270138.854 | V94: 270141.9139 | W94: 270145.0289 | X94: 270148.1999 | Y94: 270151.428 | Z94: 270154.7142 | AA94: 270158.0596 | AB94: 0 | AC94: 0 | AD94: 0 | AE94: 0 | AF94: 0 | AG94: 0 | AH94: 0 | AI94: 0 | AJ94: 0 | AK94: 0 | AL94: 0 | AM94: 0 | AN94: =AN91+AN64+AN87 -> 0 | AO94: 0 | AP94: 0 | AQ94: 0 | AR94: 0 | AS94: 0 | AT94: 0 | AU94: 0 | AV94: 0 | AW94: 0 | AX94: 0 | AY94: 0 | AZ94: 0 | BA94: 0 | BB94: 0 | BC94: 0 | BD94: 0 | BE94: 0
C95: PIRR（※２） | F95: =IF(K4=L124,"考慮不要",IF(ISERROR(IRR(G95:BE95)),"",IRR(G95:BE95))) -> 0.01807818352 | G95: =IF(K4=L124,0,(IF(K4=M124,0,-K8))) -> -4500000 | H95: =H94 -> 270103.6671 | I95: =I94 -> 270106.0937 | J95: 270108.5639 | K95: 270111.0785 | L95: 270113.6384 | M95: 270116.2444 | N95: 270118.8974 | O95: 270121.598 | P95: 270124.3473 | Q95: 270127.146 | R95: 270129.9952 | S95: 270132.8956 | T95: 270135.8482 | U95: 270138.854 | V95: 270141.9139 | W95: 270145.0289 | X95: 270148.1999 | Y95: 270151.428 | Z95: 270154.7142 | AA95: 270158.0596 | AB95: 0 | AC95: 0 | AD95: 0 | AE95: 0 | AF95: 0 | AG95: 0 | AH95: 0 | AI95: 0 | AJ95: 0 | AK95: 0 | AL95: 0 | AM95: 0 | AN95: 0 | AO95: 0 | AP95: 0 | AQ95: 0 | AR95: 0 | AS95: 0 | AT95: 0 | AU95: 0 | AV95: 0 | AW95: 0 | AX95: 0 | AY95: 0 | AZ95: 0 | BA95: 0 | BB95: 0 | BC95: 0 | BD95: 0 | BE95: 0
F97: ※１ EIRR（Equity Internal Rate of Return）は、投資家から見た内部収益率。資本金に対する配当等の利回りを示す指標。（今回は便宜的に、配当ではなく「税引後損益+割賦原価-借入金元本償還」で計算）
F98: EIRRは、「資本金」と「将来の配当金の現在価値の合計」とが等しくなるような割引率となりますが、エクセルを用いて計算する場合は、EIRRの計算結果が表されるセルに「＝IRR（-資本金が入力されているセル～将来の配当金（今回は便宜的に「税引後損益+割賦原価-借入金元本償還」）」の関数で計算できます。
F100: ※２ PIRR（Project Internal Rate of Return）は、初期投資額から見た内部収益率。初期投資額に対する配当金等の投資利回りを示す指標。（今回は便宜的に、配当ではなく「税引後損益+割賦原価+支払利息」で計算）
F101: PIRRは、「設備投資額」と「将来の配当金の現在価値の合計」とが等しくなるような割引率となりますが、エクセルを用いて計算する場合は、ＰIRRの計算結果が表されるセルに「＝IRR（-資本金が入力されているセル～将来の配当金（今回は便宜的に「税引後損益+割賦原価+支払利息」）」の関数で計算できます。なお、当初の整備費が0の場合はPIRRは計算できません。
C103: ■採用手法での民間の資金収支 | F103: =IF(K4=M124,"考慮不要",IF(K4=N124,"考慮不要","")) ->  | G103: 整備期間 | H103: 維持管理・運営期間
F104: 仮定した内容 | G104: -1 | H104: 1 | I104: 2 | J104: 3 | K104: 4 | L104: 5 | M104: 6 | N104: 7 | O104: 8 | P104: 9 | Q104: 10 | R104: 11 | S104: 12 | T104: 13 | U104: 14 | V104: 15 | W104: 16 | X104: 17 | Y104: 18 | Z104: 19 | AA104: 20 | AB104: 21 | AC104: 22 | AD104: 23 | AE104: 24 | AF104: 25 | AG104: 26 | AH104: 27 | AI104: 28 | AJ104: 29 | AK104: 30 | AL104: 31 | AM104: 32 | AN104: 33 | AO104: 34 | AP104: 35 | AQ104: 36 | AR104: 37 | AS104: 38 | AT104: 39 | AU104: 40 | AV104: 41 | AW104: 42 | AX104: 43 | AY104: 44 | AZ104: 45 | BA104: 46 | BB104: 47 | BC104: 48 | BD104: 49 | BE104: 50 | BF104: 合計
D105: 資本金 | F105: =IF(K4=M124,0,IF(K4=N124,0,K27)) -> 10000 | G105: =F105 -> 10000 | BF105: =SUM(G105:BE105) -> 10000
D106: 借入金 | F106: =K28 -> 4490000 | G106: =F106 -> 4490000 | BF106: =SUM(G106:BE106) -> 4490000
D107: 整備費の原価（一括受領分） | G107: =G78 -> 0 | H107: =H78 -> 0 | I107: =I78 -> 0 | J107: 0 | K107: 0 | L107: 0 | M107: 0 | N107: 0 | O107: 0 | P107: 0 | Q107: 0 | R107: 0 | S107: 0 | T107: 0 | U107: 0 | V107: 0 | W107: 0 | X107: 0 | Y107: 0 | Z107: 0 | AA107: 0 | AB107: 0 | AC107: 0 | AD107: 0 | AE107: 0 | AF107: 0 | AG107: 0 | AH107: 0 | AI107: 0 | AJ107: 0 | AK107: 0 | AL107: 0 | AM107: 0 | AN107: 0 | AO107: 0 | AP107: 0 | AQ107: 0 | AR107: 0 | AS107: 0 | AT107: 0 | AU107: 0 | AV107: 0 | AW107: 0 | AX107: 0 | AY107: 0 | AZ107: 0 | BA107: 0 | BB107: 0 | BC107: 0 | BD107: 0 | BE107: 0 | BF107: =SUM(G107:BE107) -> 0
D108: 整備費の原価（割賦受領分） | H108: =H79 -> 188922.2734 | I108: 192322.8744 | J108: 195784.6861 | K108: 199308.8105 | L108: 202896.369 | M108: 206548.5037 | N108: 210266.3768 | O108: 214051.1715 | P108: 217904.0926 | Q108: 221826.3663 | R108: 225819.2409 | S108: 229883.9872 | T108: 234021.899 | U108: 238234.2932 | V108: 242522.5104 | W108: 246887.9156 | X108: 251331.8981 | Y108: 255855.8723 | Z108: 260461.278 | AA108: 265149.581 | AB108: 0 | AC108: 0 | AD108: 0 | AE108: 0 | AF108: 0 | AG108: 0 | AH108: 0 | AI108: 0 | AJ108: 0 | AK108: 0 | AL108: 0 | AM108: 0 | AN108: 0 | AO108: 0 | AP108: 0 | AQ108: 0 | AR108: 0 | AS108: 0 | AT108: 0 | AU108: 0 | AV108: 0 | AW108: 0 | AX108: 0 | AY108: 0 | AZ108: 0 | BA108: 0 | BB108: 0 | BC108: 0 | BD108: 0 | BE108: 0 | BF108: 4500000
D109: 税引後単年度損益 | G109: =G91 -> 0 | H109: =H91 -> 361.393703 | I109: 356.2633298 | J109: 351.0406098 | K109: 345.7238809 | L109: 340.3114508 | M109: 334.801597 | N109: 329.1925658 | O109: 323.4825721 | P109: 317.6697985 | Q109: 311.752395 | R109: 305.7284782 | S109: 299.5961309 | T109: 293.3534013 | U109: 286.9983026 | V109: 280.5288121 | W109: 273.9428708 | X109: 267.2383826 | Y109: 260.4132136 | Z109: 253.4651915 | AA109: 246.3921051 | AB109: 0 | AC109: 0 | AD109: 0 | AE109: 0 | AF109: 0 | AG109: 0 | AH109: 0 | AI109: 0 | AJ109: 0 | AK109: 0 | AL109: 0 | AM109: 0 | AN109: 0 | AO109: 0 | AP109: 0 | AQ109: 0 | AR109: 0 | AS109: 0 | AT109: 0 | AU109: 0 | AV109: 0 | AW109: 0 | AX109: 0 | AY109: 0 | AZ109: 0 | BA109: 0 | BB109: 0 | BC109: 0 | BD109: 0 | BE109: 0 | BF109: 6139.288791
C110: 資金収入合計（A) | G110: =SUM(G105:G109) -> 4500000 | H110: =SUM(H105:H109) -> 189283.6671 | I110: =SUM(I105:I109) -> 192679.1377 | J110: 196135.7267 | K110: 199654.5343 | L110: 203236.6805 | M110: 206883.3053 | N110: 210595.5693 | O110: 214374.6541 | P110: 218221.7624 | Q110: 222138.1187 | R110: 226124.9694 | S110: 230183.5833 | T110: 234315.2524 | U110: 238521.2915 | V110: 242803.0393 | W110: 247161.8585 | X110: 251599.1365 | Y110: 256116.2855 | Z110: 260714.7432 | AA110: 265395.9731 | AB110: 0 | AC110: 0 | AD110: 0 | AE110: 0 | AF110: 0 | AG110: 0 | AH110: 0 | AI110: 0 | AJ110: 0 | AK110: 0 | AL110: 0 | AM110: 0 | AN110: 0 | AO110: 0 | AP110: 0 | AQ110: 0 | AR110: 0 | AS110: 0 | AT110: 0 | AU110: 0 | AV110: 0 | AW110: 0 | AX110: 0 | AY110: 0 | AZ110: 0 | BA110: 0 | BB110: 0 | BC110: 0 | BD110: 0 | BE110: 0 | BF110: 9006139.289
D111: 借入金の元金返済 | F111: =K28 -> 4490000 | H111: =IF(H104>$K$6,0,PPMT($K$29,H77,$K$30,-$K$28,0)) -> 188502.4462 | I111: 191895.4902 | J111: 195349.609 | K111: 198865.902 | L111: 202445.4882 | M111: 206089.507 | N111: 209799.1181 | O111: 213575.5023 | P111: 217419.8613 | Q111: 221333.4188 | R111: 225317.4203 | S111: 229373.1339 | T111: 233501.8503 | U111: 237704.8836 | V111: 241983.5715 | W111: 246339.2758 | X111: 250773.3828 | Y111: 255287.3037 | Z111: 259882.4751 | AA111: 264560.3597 | AB111: 0 | AC111: 0 | AD111: 0 | AE111: 0 | AF111: 0 | AG111: 0 | AH111: 0 | AI111: 0 | AJ111: 0 | AK111: 0 | AL111: 0 | AM111: 0 | AN111: =IF(AN104>$K$6,0,PPMT($K$29,AN77,$K$30,-$K$28,0)) -> 0 | AO111: 0 | AP111: 0 | AQ111: 0 | AR111: 0 | AS111: 0 | AT111: 0 | AU111: 0 | AV111: 0 | AW111: 0 | AX111: 0 | AY111: 0 | AZ111: 0 | BA111: 0 | BB111: 0 | BC111: 0 | BD111: 0 | BE111: 0 | BF111: 4490000
D112: 整備費 | F112: =IF(K4=M124,0,K8) -> 4500000 | G112: =F112 -> 4500000 | BF112: 4500000
C113: 資金支出合計（B) | G113: =SUM(G111:G112) -> 4500000 | H113: 188502.4462 | I113: 191895.4902 | J113: 195349.609 | K113: 198865.902 | L113: 202445.4882 | M113: 206089.507 | N113: 209799.1181 | O113: 213575.5023 | P113: 217419.8613 | Q113: 221333.4188 | R113: 225317.4203 | S113: 229373.1339 | T113: 233501.8503 | U113: 237704.8836 | V113: 241983.5715 | W113: 246339.2758 | X113: 250773.3828 | Y113: 255287.3037 | Z113: 259882.4751 | AA113: 264560.3597 | AB113: =SUM(AB111:AB112) -> 0 | AC113: 0 | AD113: 0 | AE113: 0 | AF113: 0 | AG113: 0 | AH113: 0 | AI113: 0 | AJ113: 0 | AK113: 0 | AL113: 0 | AM113: 0 | AN113: 0 | AO113: 0 | AP113: 0 | AQ113: 0 | AR113: 0 | AS113: 0 | AT113: 0 | AU113: 0 | AV113: 0 | AW113: 0 | AX113: 0 | AY113: 0 | AZ113: 0 | BA113: 0 | BB113: 0 | BC113: 0 | BD113: 0 | BE113: 0 | BF113: 8990000
C114: 資金収支（C）＝（A）-（B） | G114: =G110-G113 -> 0 | H114: 781.2209774 | I114: 783.647495 | J114: 786.11769 | K114: 788.6323485 | L114: 791.1922709 | M114: 793.7982719 | N114: 796.4511808 | O114: 799.1518422 | P114: 801.9011154 | Q114: 804.6998756 | R114: 807.5490135 | S114: 810.4494358 | T114: 813.4020657 | U114: 816.407843 | V114: 819.4677242 | W114: 822.5826834 | X114: 825.7537118 | Y114: 828.9818187 | Z114: 832.2680315 | AA114: 835.6133961 | AB114: 0 | AC114: 0 | AD114: 0 | AE114: 0 | AF114: 0 | AG114: 0 | AH114: 0 | AI114: 0 | AJ114: 0 | AK114: 0 | AL114: 0 | AM114: 0 | AN114: 0 | AO114: 0 | AP114: 0 | AQ114: 0 | AR114: 0 | AS114: 0 | AT114: 0 | AU114: 0 | AV114: 0 | AW114: 0 | AX114: 0 | AY114: 0 | AZ114: 0 | BA114: 0 | BB114: 0 | BC114: 0 | BD114: 0 | BE114: 0 | BF114: 16139.28879
AF116: 37 | BG116: 38
E117: 割賦元金の現在価値 | G117: =NPV($K$38,H79:BE79) -> 2724731.481 | H117: =G117+G118-G119-G121 -> 1.862645149e-09
E118: 税引後当期損益の現在価値 | G118: =NPV($K$38,H91:BE91) -> 3945.041153
E119: 借入金の元金返済の現在価値 | G119: =NPV($K$38,H111:BE111) -> 2718676.522
E120: 「税引後当期損益+割賦原価-借入金元本償還」 | G120: =G117+G118-G119 -> 10000
E121: 資本金 | G121: =F105 -> 10000
K124: ①BTO・BOT・BOO・RO | L124: ②DBO | M124: ③BT | N124: ④指定管理者制度
K125: 期限一括 | L125: 元利均等 | M125: 元金均等
F126: 従来型手法 | G126: 年度初の起債 | H126: =F47 -> 3750000 | I126: =H126-H47 -> 3584610.596 | J126: =I126-I47 -> 3417071.129 | K126: 3247353.649 | L126: 3075429.842 | M126: 2901271.026 | N126: 2724848.145 | O126: 2546131.766 | P126: 2365092.075 | Q126: 2181698.868 | R126: 1995921.549 | S126: 1807729.124 | T126: 1617090.199 | U126: 1423972.967 | V126: 1228345.211 | W126: 1030174.294 | X126: 829427.1558 | Y126: 626070.3044 | Z126: 420069.814 | AA126: 211391.3172 | AB126: -2.328306437e-10 | AC126: -2.328306437e-10 | AD126: -2.328306437e-10 | AE126: -2.328306437e-10 | AF126: -2.328306437e-10 | AG126: -2.328306437e-10 | AH126: -2.328306437e-10 | AI126: -2.328306437e-10 | AJ126: -2.328306437e-10 | AK126: -2.328306437e-10 | AL126: -2.328306437e-10 | AM126: -2.328306437e-10 | AN126: -2.328306437e-10 | AO126: -2.328306437e-10 | AP126: -2.328306437e-10 | AQ126: -2.328306437e-10 | AR126: -2.328306437e-10 | AS126: -2.328306437e-10 | AT126: -2.328306437e-10 | AU126: -2.328306437e-10 | AV126: -2.328306437e-10 | AW126: -2.328306437e-10 | AX126: -2.328306437e-10 | AY126: -2.328306437e-10 | AZ126: -2.328306437e-10 | BA126: -2.328306437e-10 | BB126: -2.328306437e-10 | BC126: -2.328306437e-10 | BD126: -2.328306437e-10 | BE126: -2.328306437e-10
F128: 採用手法 | G128: 年度初の起債 | H128: =F62 -> 0 | I128: =H128-H62 -> 0 | J128: =I128-I62 -> 0 | K128: 0 | L128: 0 | M128: 0 | N128: 0 | O128: 0 | P128: 0 | Q128: 0 | R128: 0 | S128: 0 | T128: 0 | U128: 0 | V128: 0 | W128: 0 | X128: 0 | Y128: 0 | Z128: 0 | AA128: 0 | AB128: 0 | AC128: 0 | AD128: 0 | AE128: 0 | AF128: 0 | AG128: 0 | AH128: 0 | AI128: 0 | AJ128: 0 | AK128: 0 | AL128: 0 | AM128: 0 | AN128: 0 | AO128: 0 | AP128: 0 | AQ128: 0 | AR128: 0 | AS128: 0 | AT128: 0 | AU128: 0 | AV128: 0 | AW128: 0 | AX128: 0 | AY128: 0 | AZ128: 0 | BA128: 0 | BB128: 0 | BC128: 0 | BD128: 0 | BE128: 0
